Workbook

Sheet Задание

Sheet ТИТУЛ
A1: Государственное бюджетное дошкольное образовательное учреждение детский сад №45 комбинированного вида Приморского района Санкт-Петербурга
A10: Диагностика индивидуального развития детей 2-3 лет
C13: 20__-20___ учебный год
B15: В соответствии с Федеральной образовательной программой дошкольного образования
B16: Приказ Министерства просвещения РФ от 25.11.2022г.
A18: Группа:
A20: Педагоги:
A22: Воспитатель:
A23: Воспитатель:
A24: Музыкальный руководитель:
A26: Инструктор по физической культуре:

Sheet СК
A1: Образовательная область «Социально-коммуникативное развитие»
A3: №п/п | B3: ФИ ребенка | C3: Стремится к общению со взрослыми, реагирует на их настроение | E3: Проявляет интерес к сверстникам. Наблюдает за их действиями и подражаетим. Играет рядом. | G3: Старается выполнять элементарные правила поведения ("можно", "нельзя") | I3: Узнает членов своей семьи | K3: Понимает и выполняет простые поручения взрослого | M3: Стремится проявлять самостоятельность в бытовом и игровом поведении | O3: Наблюдает за трудовыми процессами воспитателя в уголке природы | Q3: Выполняет простейшие трудовые действия (с помощью педагогов) | S3: Использует в игре замещение недостающего предмета | U3: В самостоятельной игре сопровождает речью свои действия | W3: среднее значение
C5: н.г. | D5: к.г. | E5: н.г. | F5: к.г. | G5: н.г. | H5: к.г. | I5: н.г. | J5: к.г. | K5: н.г. | L5: к.г. | M5: н.г. | N5: к.г. | O5: н.г. | P5: к.г. | Q5: н.г. | R5: к.г. | S5: н.г. | T5: к.г. | U5: н.г. | V5: к.г. | W5: н.г. | X5: к.г.
A6: 1 | B6: Иванов 1 | I6: 3.1 | K6: 3.5 | M6: 3.08 | W6: =AVERAGE(C6,E6,G6,I6,K6,M6,O6,Q6,S6,U6) -> 3.226666667 | X6: =AVERAGE(H6,D6,F6,J6,L6,N6,P6,R6,T6,V6) -> 
A7: 2 | B7: Иванов 2 | I7: 3.08 | K7: 3.5 | M7: 3.09 | W7: =AVERAGE(C7,E7,G7,I7,K7,M7,O7,Q7,S7,U7) -> 3.223333333 | X7: =AVERAGE(H7,D7,F7,J7,L7,N7,P7,R7,T7,V7) -> 
A8: 3 | B8: Иванов 3 | I8: 3.1 | K8: 3.5 | M8: 3.08 | W8: 3.226666667
A9: 4 | B9: Иванов 4 | I9: 3.1 | K9: 3.5 | M9: 3.08 | W9: 3.226666667
A10: 5 | B10: Иванов 5 | I10: 3.1 | K10: 3.5 | M10: 3.08 | W10: 3.226666667
A11: 6 | B11: Иванов 6 | I11: 3.1 | K11: 3.5 | M11: 3.08 | W11: 3.226666667
A12: 7 | B12: Иванов 7 | I12: 3.1 | K12: 3.5 | M12: 3.08 | W12: 3.226666667
A13: 8 | B13: Иванов 8 | I13: 3.1 | K13: 3.5 | M13: 3.08 | W13: 3.226666667
A14: 9 | B14: Иванов 9 | I14: 3.1 | K14: 3.5 | M14: 3.08 | W14: 3.226666667
A15: 10 | B15: Иванов 10 | I15: 3.1 | K15: 3.5 | M15: 3.08 | W15: 3.226666667
A16: 11
A17: 12
A18: 13
A19: 14
A20: 15
A21: 16
A22: 17
A23: 18
A24: 19
A25: 20
A26: 21
A27: 22
A28: 23
A29: 24
A30: 25
A31: 26
A32: 27
A33: 28
A34: 29
A35: 30 | W35: =AVERAGE(C35,E35,G35,I35,K35,M35,O35,Q35,S35,U35) -> 
B36: среднее значение: | C36: =AVERAGE(C6:C35) ->  | D36: =AVERAGE(D6:D35) ->  | I36: 3.098 | K36: 3.5 | M36: 3.081 | W36: =AVERAGE(C36,E36,G36,I36,K36,M36,O36,Q36,S36,U36) -> 
E38: начало года
H39: всего | I39: В | J39: С | K39: НС | L39: Н
E41: количество детей | H41: =COUNTA($B$7:$B$36) -> 10 | I41: =COUNTIF($W$6:$W$35,">=3,1") -> 10 | J41: =COUNTIFS($W$6:$W$35,">=2,1",$W$6:$W$35,"<=3") -> 0 | K41: =COUNTIFS($W$6:$W$35,">=1,1",$W$6:$W$35,"<=2") -> 0 | L41: =COUNTIFS($W$6:$W$35,"<=1") -> 0
E42: % | H42: 100 | I42: =I41*H42/H41 -> 100 | J42: =J41*H42/H41 -> 0 | K42: =K41*H42/H41 -> 0 | L42: =L41*H42/H41 -> 0
E44: конец года
H45: всего | I45: В | J45: С | K45: НС | L45: Н
E47: количество детей | H47: =COUNTA($B$7:$B$36) -> 10 | I47: =COUNTIF($X$6:$X$35,">=3,1") -> 0 | J47: =COUNTIFS($X$6:$X$35,">=2,1",$X$6:$X$35,"<=3") -> 0 | K47: =COUNTIFS($X$6:$X$35,">=1,1",$X$6:$X$35,"<=2") -> 0 | L47: =COUNTIFS($X$6:$X$35,"<=1") -> 0
E48: % | H48: 100 | I48: =I47*H48/H47 -> 0 | J48: =J47*H48/H47 -> 0 | K48: =K47*H48/H47 -> 0 | L48: =L47*H48/H47 -> 0
E50: В-ВЫСОКИЙ С- СРЕДНИЙ НС - НИЖЕ СРЕДНЕГО Н - НИЗКИЙ

Sheet ПР
A1: Образовательная область «Познавательное развитие»
C3: СЕНСОРНЫЕ ЭТАЛОНЫ И ПОЗНАВАТЕЛЬНЫЕ ДЕЙСТВИЯ | O3: МАТЕМАТИЧЕСКИЕ ПРЕДСТАВЛЕНИЯ | AA3: ОКРУЖАЮЩИЙ МИР. ПРИРОДА
A4: №п/п | B4: ФИ ребенка | C4: Различает красный, синий, зеленый, желтый, белый, черный цвета | E4: Может образовывать группу по заданному образцу (по цвету, форме, величине) | G4: Разбирает и собирает | K4: Владеет обобщенными способами обследования формы предметов (ощупывание, рассматривание, сравнение, сопоставление) | M4: среднее значение | O4: Различает форму окружающих предметов | Q4: Различает | W4: Проявляет интерес к количественной группировке предметов (много и много, много и мало, много и один) | Y4: среднее значение | AA4: Называет имена членов своей семьи и воспитателей | AC4: Узнает и называет некоторых домашних и диких животных, их детенышей | AE4: Различает и называет некоторые овощи и фрукты (1-2 вида) | AG4: Различает некоторые деревья ближайшего окружения (1-2 вида) | AI4: Имеет эле ментарные представления о природных сезон ных явлениях | AK4: Проявляет бережное отношение к животным и растениям | AM4: среднее значение
G5: цветные пирамидки из 4-5 колец | I5: трехместную матрешку с совмещением рисунка на ее частях | Q5: большие и маленькие предметы, называет их размер | S5: длинные и короткие предметы | U5: высокие и низкие предметы
C6: н.г. | D6: к.г. | E6: н.г. | F6: к.г. | G6: н.г. | H6: к.г. | I6: н.г. | J6: к.г. | K6: н.г. | L6: к.г. | M6: н.г. | N6: к.г. | O6: н.г. | P6: к.г. | Q6: н.г. | R6: к.г. | S6: н.г. | T6: к.г. | U6: н.г. | V6: к.г. | W6: н.г. | X6: к.г. | Y6: н.г. | Z6: к.г. | AA6: н.г. | AB6: к.г. | AC6: н.г. | AD6: к.г. | AE6: н.г. | AF6: к.г. | AG6: н.г. | AH6: к.г. | AI6: н.г. | AJ6: к.г. | AK6: н.г. | AL6: к.г. | AM6: н.г. | AN6: к.г.
A7: 1 | B7: =СК!B6 -> Иванов 1 | M7: =AVERAGE(C7,E7,G7,I7,K7) ->  | N7: =AVERAGE(D7,F7,H7,J7,L7) ->  | Y7: =AVERAGE(O7,Q7,S7,U7,W7) ->  | Z7: =AVERAGE(P7,R7,T7,V7,X7) ->  | AM7: =AVERAGE(AA7,AC7,AE7,AG7,AI7,AK7) ->  | AN7: =AVERAGE(AB7,AD7,AF7,AH7,AJ7,AL7) -> 
A8: 2 | B8: =СК!B7 -> Иванов 2 | M8: =AVERAGE(C8,E8,G8,I8,K8) ->  | N8: =AVERAGE(D8,F8,H8,J8,L8) ->  | Y8: =AVERAGE(O8,Q8,S8,U8,W8) ->  | Z8: =AVERAGE(P8,R8,T8,V8,X8) ->  | AM8: =AVERAGE(AA8,AC8,AE8,AG8,AI8,AK8) ->  | AN8: =AVERAGE(AB8,AD8,AF8,AH8,AJ8,AL8) -> 
A9: 3 | B9: =СК!B8 -> Иванов 3
A10: 4 | B10: =СК!B9 -> Иванов 4
A11: 5 | B11: =СК!B10 -> Иванов 5
A12: 6 | B12: =СК!B11 -> Иванов 6
A13: 7 | B13: =СК!B12 -> Иванов 7
A14: 8 | B14: =СК!B13 -> Иванов 8
A15: 9 | B15: =СК!B14 -> Иванов 9
A16: 10 | B16: =СК!B15 -> Иванов 10
A17: 11 | B17: =СК!B16 -> 0
A18: 12 | B18: =СК!B17 -> 0
A19: 13 | B19: =СК!B18 -> 0
A20: 14 | B20: =СК!B19 -> 0
A21: 15 | B21: =СК!B20 -> 0
A22: 16 | B22: =СК!B21 -> 0
A23: 17 | B23: =СК!B22 -> 0
A24: 18 | B24: =СК!B23 -> 0
A25: 19 | B25: =СК!B24 -> 0
A26: 20 | B26: =СК!B25 -> 0
A27: 21 | B27: =СК!B26 -> 0
A28: 22 | B28: =СК!B27 -> 0
A29: 23 | B29: =СК!B28 -> 0
A30: 24 | B30: =СК!B29 -> 0
A31: 25 | B31: =СК!B30 -> 0
A32: 26 | B32: =СК!B31 -> 0
A33: 27 | B33: =СК!B32 -> 0
A34: 28 | B34: =СК!B33 -> 0
A35: 29 | B35: =СК!B34 -> 0
A36: 30 | B36: =СК!B35 -> 0 | M36: =AVERAGE(C36,E36,G36,I36,K36) -> 
B37: среднее значение: | C37: =AVERAGE(C7:C36) ->  | D37: =AVERAGE(D7:D36) ->  | N37: =AVERAGE(D37,F37,H37,J37,L37) ->  | O37: =AVERAGE(O7:O36) ->  | P37: =AVERAGE(P7:P36) ->  | Q37: =AVERAGE(Q7:Q36) ->  | R37: =AVERAGE(R7:R36) ->  | S37: =AVERAGE(S7:S36) ->  | T37: =AVERAGE(T7:T36) ->  | U37: =AVERAGE(U7:U36) ->  | V37: =AVERAGE(V7:V36) ->  | W37: =AVERAGE(W7:W36) ->  | X37: =AVERAGE(X7:X36) ->  | Y37: =AVERAGE(O37,Q37,S37,U37,W37) ->  | Z37: =AVERAGE(P37,R37,T37,V37,X37) ->  | AA37: =AVERAGE(AA7:AA36) ->  | AB37: =AVERAGE(AB7:AB36) ->  | AM37: =AVERAGE(AA37,AC37,AE37,AG37,AI37,AK37) ->  | AN37: =AVERAGE(AB37,AD37,AF37,AH37,AJ37,AL37) -> 
B40: СЕНСОРНЫЕ ЭТАЛОНЫ И ПОЗНАВАТЕЛЬНЫЕ ДЕЙСТВИЯ. Начало года | O40: МАТЕМАТИЧЕСКИЕ ПРЕДСТАВЛЕНИЯ. Начало года | Y40: ОКРУЖАЮЩИЙ МИР. ПРИРОДА. Начало года
C41: всего | D41: В | E41: С | F41: НС | G41: Н | P41: всего | Q41: В | R41: С | S41: НС | T41: Н | AB41: всего | AC41: В | AD41: С | AE41: НС | AF41: Н
B42: количество детей | C42: =COUNTA($B$7:$B$36) -> 30 | D42: =COUNTIF($M$7:$M$36,">=3,1") -> 0 | E42: =COUNTIFS($M$7:$M$36,">=2,1",$M$7:$M$36,"<=3") -> 0 | F42: =COUNTIFS($M$7:$M$36,">=1,1",$M$7:$M$36,"<=2") -> 0 | G42: =COUNTIFS($M$7:$M$36,"<=1") -> 0 | O42: количество детей | P42: =COUNTA($B$7:$B$36) -> 30 | Q42: =COUNTIF($Y$7:$Y$36,">=3,1") -> 0 | R42: =COUNTIFS($Y$7:$Y$36,">=2,1",$Y$7:$Y$36,"<=3") -> 0 | S42: =COUNTIFS($Y$7:$Y$36,">=1,1",$Y$7:$Y$36,"<=2") -> 0 | T42: =COUNTIFS($Y$7:$Y$36,"<=1") -> 0 | Y42: количество детей | AB42: =COUNTA($B$7:$B$36) -> 30 | AC42: =COUNTIF($AM$7:$AM$36,">=3,1") -> 0 | AD42: =COUNTIFS($AM$7:$AM$36,">=2,1",$AM$7:$AM$36,"<=3") -> 0 | AE42: =COUNTIFS($AM$7:$AM$36,">=1,1",$AM$7:$AM$36,"<=2") -> 0 | AF42: =COUNTIFS($AM$7:$AM$36,"<=1") -> 0
B43: % | C43: 100 | D43: =D42*C43/C42 -> 0 | E43: =E42*C43/C42 -> 0 | F43: =F42*C43/C42 -> 0 | G43: =G42*C43/C42 -> 0 | O43: % | P43: 100 | Q43: =Q42*P43/P42 -> 0 | R43: =R42*P43/P42 -> 0 | S43: =S42*P43/P42 -> 0 | T43: =T42*P43/P42 -> 0 | Y43: % | AB43: 100 | AC43: =AC42*AB43/AB42 -> 0 | AD43: =AD42*AB43/AB42 -> 0 | AE43: =AE42*AB43/AB42 -> 0 | AF43: =AF42*AB43/AB42 -> 0
B45: СЕНСОРНЫЕ ЭТАЛОНЫ И ПОЗНАВАТЕЛЬНЫЕ ДЕЙСТВИЯ. Конец года | O45: МАТЕМАТИЧЕСКИЕ ПРЕДСТАВЛЕНИЯ. Конец года | Y45: ОКРУЖАЮЩИЙ МИР. ПРИРОДА. Конец года
C46: всего | D46: В | E46: С | F46: НС | G46: Н | P46: всего | Q46: В | R46: С | S46: НС | T46: Н | AB46: всего | AC46: В | AD46: С | AE46: НС | AF46: Н
B47: количество детей | C47: =COUNTA($B$7:$B$36) -> 30 | D47: =COUNTIF($N$7:$N$36,">=3,1") -> 0 | E47: =COUNTIFS($N$7:$N$36,">=2,1",$N$7:$N$36,"<=3") -> 0 | F47: =COUNTIFS($N$7:$N$36,">=1,1",$N$7:$N$36,"<=2") -> 0 | G47: =COUNTIFS($N$7:$N$36,"<=1") -> 0 | O47: количество детей | P47: =COUNTA($B$7:$B$36) -> 30 | Q47: =COUNTIF($Z$7:$Z$36,">=3,1") -> 0 | R47: =COUNTIFS($Z$7:$Z$36,">=2,1",$Z$7:$Z$36,"<=3") -> 0 | S47: =COUNTIFS($Z$7:$Z$36,">=1,1",$Z$7:$Z$36,"<=2") -> 0 | T47: =COUNTIFS($Z$7:$Z$36,"<=1") -> 0 | Y47: количество детей | AB47: =COUNTA($B$7:$B$36) -> 30 | AC47: =COUNTIF($AN$7:$AN$36,">=3,1") -> 0 | AD47: =COUNTIFS($AN$7:$AN$36,">=2,1",$AN$7:$AN$36,"<=3") -> 0 | AE47: =COUNTIFS($AN$7:$AN$36,">=1,1",$AN$7:$AN$36,"<=2") -> 0 | AF47: =COUNTIFS($AN$7:$AN$36,"<=1") -> 0
B48: % | C48: 100 | D48: =D47*C48/C47 -> 0 | E48: =E47*C48/C47 -> 0 | F48: =F47*C48/C47 -> 0 | G48: =G47*C48/C47 -> 0 | O48: % | P48: 100 | Q48: =Q47*P48/P47 -> 0 | R48: =R47*P48/P47 -> 0 | S48: =S47*P48/P47 -> 0 | T48: =T47*P48/P47 -> 0 | Y48: % | AB48: 100 | AC48: =AC47*AB48/AB47 -> 0 | AD48: =AD47*AB48/AB47 -> 0 | AE48: =AE47*AB48/AB47 -> 0 | AF48: =AF47*AB48/AB47 -> 0
B50: В-ВЫСОКИЙ С- СРЕДНИЙ НС - НИЖЕ СРЕДНЕГО Н - НИЗКИЙ

Sheet РР
A1: Образовательная область «Речевое развитие»
E3: ФОРМИРОВАНИЕ СЛОВАРЯ | M3: ЗВУКОВАЯ КУЛЬТУРА РЕЧИ | U3: ГРАММАТИЧЕСКИЙ СТРОЙ РЕЧИ | AE3: СВЯЗНАЯ РЕЧЬ | AM3: ИНТЕРЕС К ХУДОЖЕСТВЕННОЙ ЛИТЕРАТУРЕ
B4: №п/п | C4: ФИ ребенка | E4: По словесному указанию находит предметы по цвету, размеру, различает их местоположение | G4: Использует сущ-ые обозначающие названия транспортных средств, растения, фрукты, овощи, животные | I4: Называет имена близких людей, имена детей группы | K4: среднее значение | M4: Правильно произносит гласные звуки | O4: Пытается произнести все слова, которые необходимы для выражения его мысли | Q4: Произносит звукоподражательные слова в разном темпе, с разной силой голоса | S4: среднее значение | U4: Правильно использует в речи | AA4: Выражает свои мысли посредством 3-х, 4-х словных предложений | AC4: среднее значение | AE4: Понимает речь педагога, отвечает на вопросы | AG4: Рассказывает об окружающем в 2-4 предложениях | AI4: Сопровождает речью игровые и бытовые действия | AK4: среднее значение | AM4: Воспринимает небольшие по объему потешки, сказки, рассказы с наглядным сопровождением и без него | AO4: Договаривает и произносит четверостишья известных ему стихов, песенок; воспроизводит игровые действия, движения персонажей | AQ4: Произносит звукоподражание, связанные с содержание текста (мяу-мяу, тмк-так, баю-бай) | AS4: Рассматривает книги и иллюстрации вместе с педагогом и самостоятельно | AU4: среднее значение
U5: окончание имен существительных | W5: уменьшительно-ласкательные суффиксы | Y5: местоимения с глаголами
E6: н.г. | F6: к.г. | G6: н.г. | H6: к.г. | I6: н.г. | J6: к.г. | K6: н.г. | L6: к.г. | M6: н.г. | N6: к.г. | O6: н.г. | P6: к.г. | Q6: н.г. | R6: к.г. | S6: н.г. | T6: к.г. | U6: н.г. | V6: к.г. | W6: н.г. | X6: к.г. | Y6: н.г. | Z6: к.г. | AA6: н.г. | AB6: к.г. | AC6: н.г. | AD6: к.г. | AE6: н.г. | AF6: к.г. | AG6: н.г. | AH6: к.г. | AI6: н.г. | AJ6: к.г. | AK6: н.г. | AL6: к.г. | AM6: н.г. | AN6: к.г. | AO6: н.г. | AP6: к.г. | AQ6: н.г. | AR6: к.г. | AS6: н.г. | AT6: к.г. | AU6: н.г. | AV6: к.г.
B7: 1 | C7: =СК!B6 -> Иванов 1 | K7: =AVERAGE(E7,G7,I7) ->  | L7: =AVERAGE(F7,H7,J7) ->  | S7: =AVERAGE(M7,O7,Q7) ->  | T7: =AVERAGE(N7,P7,R7) ->  | AC7: =AVERAGE(U7,W7,Y7,AA7) ->  | AD7: =AVERAGE(V7,X7,Z7,AB7) ->  | AK7: =AVERAGE(AE7,AG7,AI7) ->  | AL7: =AVERAGE(AF7,AH7,AJ7) ->  | AU7: =AVERAGE(AM7,AO7,AQ7,AS7) ->  | AV7: =AVERAGE(AN7,AP7,AR7,AT7) -> 
B8: 2 | C8: =СК!B7 -> Иванов 2 | K8: =AVERAGE(E8,G8,I8) ->  | L8: =AVERAGE(F8,H8,J8) ->  | S8: =AVERAGE(M8,O8,Q8) ->  | T8: =AVERAGE(N8,P8,R8) ->  | AC8: =AVERAGE(U8,W8,Y8,AA8) ->  | AD8: =AVERAGE(V8,X8,Z8,AB8) ->  | AK8: =AVERAGE(AE8,AG8,AI8) ->  | AL8: =AVERAGE(AF8,AH8,AJ8) ->  | AU8: =AVERAGE(AM8,AO8,AQ8,AS8) ->  | AV8: =AVERAGE(AN8,AP8,AR8,AT8) -> 
B9: 3 | C9: =СК!B8 -> Иванов 3
B10: 4 | C10: =СК!B9 -> Иванов 4
B11: 5 | C11: =СК!B10 -> Иванов 5
B12: 6 | C12: =СК!B11 -> Иванов 6
B13: 7 | C13: =СК!B12 -> Иванов 7
B14: 8 | C14: =СК!B13 -> Иванов 8
B15: 9 | C15: =СК!B14 -> Иванов 9
B16: 10 | C16: =СК!B15 -> Иванов 10
B17: 11 | C17: =СК!B16 -> 0
B18: 12 | C18: =СК!B17 -> 0
B19: 13 | C19: =СК!B18 -> 0
B20: 14 | C20: =СК!B19 -> 0
B21: 15 | C21: =СК!B20 -> 0
B22: 16 | C22: =СК!B21 -> 0
B23: 17 | C23: =СК!B22 -> 0
B24: 18 | C24: =СК!B23 -> 0
B25: 19 | C25: =СК!B24 -> 0
B26: 20 | C26: =СК!B25 -> 0
B27: 21 | C27: =СК!B26 -> 0
B28: 22 | C28: =СК!B27 -> 0
B29: 23 | C29: =СК!B28 -> 0
B30: 24 | C30: =СК!B29 -> 0
B31: 25 | C31: =СК!B30 -> 0
B32: 26 | C32: =СК!B31 -> 0
B33: 27 | C33: =СК!B32 -> 0 | AV33: =AVERAGE(AN33,AP33,AR33,AT33) -> 
B34: 28 | C34: =СК!B33 -> 0
B35: 29 | C35: =СК!B34 -> 0
B36: 30 | C36: =СК!B35 -> 0
C37: среднее значение: | E37: =AVERAGE(E7:E36) ->  | F37: =AVERAGE(F7:F36) ->  | G37: =AVERAGE(G7:G36) ->  | H37: =AVERAGE(H7:H36) ->  | I37: =AVERAGE(I7:I36) ->  | K37: =AVERAGE(E37,G37,I37) ->  | L37: =AVERAGE(F37,H37,J37) ->  | M37: =AVERAGE(M7:M36) ->  | N37: =AVERAGE(N7:N36) ->  | S37: =AVERAGE(M37,O37,Q37) ->  | T37: =AVERAGE(N37,P37,R37) ->  | U37: =AVERAGE(U7:U36) ->  | V37: =AVERAGE(V7:V36) ->  | W37: =AVERAGE(W7:W36) ->  | X37: =AVERAGE(X7:X36) ->  | Y37: =AVERAGE(Y7:Y36) ->  | Z37: =AVERAGE(Z7:Z36) ->  | AA37: =AVERAGE(AA7:AA36) ->  | AB37: =AVERAGE(AB7:AB36) ->  | AC37: =AVERAGE(U37,W37,Y37,AA37) ->  | AD37: =AVERAGE(V37,X37,Z37,AB37) ->  | AE37: =AVERAGE(AE7:AE36) ->  | AF37: =AVERAGE(AF7:AF36) ->  | AG37: =AVERAGE(AG7:AG36) ->  | AH37: =AVERAGE(AH7:AH36) ->  | AI37: =AVERAGE(AI7:AI36) ->  | AJ37: =AVERAGE(AJ7:AJ36) ->  | AK37: =AVERAGE(AE37,AG37,AI37) ->  | AL37: =AVERAGE(AF37,AH37,AJ37) ->  | AM37: =AVERAGE(AM7:AM36) ->  | AN37: =AVERAGE(AN7:AN36) ->  | AO37: =AVERAGE(AO7:AO36) ->  | AP37: =AVERAGE(AP7:AP36) ->  | AQ37: =AVERAGE(AQ7:AQ36) ->  | AR37: =AVERAGE(AR7:AR36) ->  | AS37: =AVERAGE(AS7:AS36) ->  | AT37: =AVERAGE(AT7:AT36) ->  | AU37: =AVERAGE(AM37,AO37,AQ37,AS37) ->  | AV37: =AVERAGE(AN37,AP37,AR37,AT37) -> 
C39: РАЗВИТИЕ СЛОВАРЯ. Начало года | M39: ЗВУКОВАЯ КУЛЬТУРА РЕЧИ. Начало года | V39: ГРАММАТИЧЕСКИЙ СТРОЙ РЕЧИ. Начало года | AE39: СВЯЗНАЯ РЕЧЬ. Начало года | AN39: ИНТЕРЕС К ХУДОЖЕСТВЕННОЙ ЛИТЕРАТУРЕ. Начало года
E40: всего | F40: В | G40: С | H40: НС | I40: Н | P40: всего | Q40: В | R40: С | S40: НС | T40: Н | Y40: всего | Z40: В | AA40: С | AB40: НС | AC40: Н | AG40: всего | AH40: В | AI40: С | AJ40: НС | AK40: Н | AQ40: всего | AR40: В | AS40: С | AT40: НС | AU40: Н
C41: количество детей | E41: =COUNTA($C$7:$C$36) -> 30 | F41: =COUNTIF($K$7:$K$36,">=3,1") -> 0 | G41: =COUNTIFS($K$7:$K$36,">=2,1",$K$7:$K$36,"<=3") -> 0 | H41: =COUNTIFS($K$7:$K$36,">=1,1",$K$7:$K$36,"<=2") -> 0 | I41: =COUNTIFS($K$7:$K$36,"<=1") -> 0 | M41: количество детей | P41: =COUNTA($C$7:$C$36) -> 30 | Q41: =COUNTIF($S$7:$S$36,">=3,1") -> 0 | R41: =COUNTIFS($S$7:$S$36,">=2,1",$S$7:$S$36,"<=3") -> 0 | S41: =COUNTIFS($S$7:$S$36,">=1,1",$S$7:$S$36,"<=2") -> 0 | T41: =COUNTIFS($S$7:$S$36,"<=1") -> 0 | V41: количество детей | Y41: 30 | Z41: =COUNTIF($AC$7:$AC$36,">=3,1") -> 0 | AA41: =COUNTIFS($AC$7:$AC$36,">=2,1",$AC$7:$AC$36,"<=3") -> 0 | AB41: =COUNTIFS($AC$7:$AC$36,">=1,1",$AC$7:$AC$36,"<=2") -> 0 | AC41: =COUNTIFS($AC$7:$AC$36,"<=1") -> 0 | AE41: количество детей | AG41: =COUNTA($C$7:$C$36) -> 30 | AH41: =COUNTIF($AK$7:$AK$36,">=3,1") -> 0 | AI41: =COUNTIFS($AK$7:$AK$36,">=2,1",$AK$7:$AK$36,"<=3") -> 0 | AJ41: =COUNTIFS($AK$7:$AK$36,">=1,1",$AK$7:$AK$36,"<=2") -> 0 | AK41: =COUNTIFS($AK$7:$AK$36,"<=1") -> 0 | AN41: количество детей | AQ41: 30 | AR41: =COUNTIF($AU$7:$AU$36,">=3,1") -> 0 | AS41: =COUNTIFS($AU$7:$AU$36,">=2,1",$AU$7:$AU$36,"<=3") -> 0 | AT41: =COUNTIFS($AU$7:$AU$36,">=1,1",$AU$7:$AU$36,"<=2") -> 0 | AU41: =COUNTIFS($AU$7:$AU$36,"<=1") -> 0
C42: % | E42: 100 | F42: =F41*E42/E41 -> 0 | G42: =G41*E42/E41 -> 0 | H42: =H41*E42/E41 -> 0 | I42: =I41*E42/E41 -> 0 | M42: % | P42: 100 | Q42: =Q41*P42/P41 -> 0 | R42: =R41*P42/P41 -> 0 | S42: =S41*P42/P41 -> 0 | T42: =T41*P42/P41 -> 0 | V42: % | Y42: 100 | Z42: =Z41*Y42/Y41 -> 0 | AA42: =AA41*Y42/Y41 -> 0 | AB42: =AB41*Y42/Y41 -> 0 | AC42: =AC41*Y42/Y41 -> 0 | AE42: % | AG42: 100 | AH42: =AH41*AG42/AG41 -> 0 | AI42: =AI41*AG42/AG41 -> 0 | AJ42: =AJ41*AG42/AG41 -> 0 | AK42: =AK41*AG42/AG41 -> 0 | AN42: % | AQ42: 100 | AR42: =AR41*AQ42/AQ41 -> 0 | AS42: =AS41*AQ42/AQ41 -> 0 | AT42: =AT41*AQ42/AQ41 -> 0 | AU42: =AU41*AQ42/AQ41 -> 0
C44: РАЗВИТИЕ СЛОВАРЯ. Конец года | M44: ЗВУКОВАЯ КУЛЬТУРА РЕЧИ. Конец года | V44: ГРАММАТИЧЕСКИЙ СТРОЙ РЕЧИ. Конец года | AE44: СВЯЗНАЯ РЕЧЬ. Конец года | AN44: ИНТЕРЕС К ХУДОЖЕСТВЕННОЙ ЛИТЕРАТУРЕ. Конец года
E45: всего | F45: В | G45: С | H45: НС | I45: Н | P45: всего | Q45: В | R45: С | S45: НС | T45: Н | Y45: всего | Z45: В | AA45: С | AB45: НС | AC45: Н | AG45: всего | AH45: В | AI45: С | AJ45: НС | AK45: Н | AQ45: всего | AR45: В | AS45: С | AT45: НС | AU45: Н
C46: количество детей | E46: =COUNTA(C7:C36) -> 30 | F46: =COUNTIF($L$7:$L$36,">=3,1") -> 0 | G46: =COUNTIFS($L$7:$L$36,">=2,1",$L$7:$L$36,"<=3") -> 0 | H46: =COUNTIFS($L$7:$L$36,">=1,1",$L$7:$L$36,"<=2") -> 0 | I46: =COUNTIFS($L$7:$L$36,"<=1") -> 0 | M46: количество детей | P46: =COUNTA($C$7:$C$36) -> 30 | Q46: =COUNTIF($T$7:$T$36,">=3,1") -> 0 | R46: =COUNTIFS($T$7:$T$36,">=2,1",$T$7:$T$36,"<=3") -> 0 | S46: =COUNTIFS($T$7:$T$36,">=1,1",$T$7:$T$36,"<=2") -> 0 | T46: =COUNTIFS($T$7:$T$36,"<=1") -> 0 | V46: количество детей | Y46: 30 | Z46: =COUNTIF($AD$7:$AD$36,">=3,1") -> 0 | AA46: =COUNTIFS($AD$7:$AD$36,">=2,1",$AD$7:$AD$36,"<=3") -> 0 | AB46: =COUNTIFS($AD$7:$AD$36,">=1,1",$AD$7:$AD$36,"<=2") -> 0 | AC46: =COUNTIFS($AD$7:$AD$36,"<=1") -> 0 | AE46: количество детей | AG46: =COUNTA($C$7:$C$36) -> 30 | AH46: =COUNTIF($AL$7:$AL$36,">=3,1") -> 0 | AI46: =COUNTIFS($AL$7:$AL$36,">=2,1",$AL$7:$AL$36,"<=3") -> 0 | AJ46: =COUNTIFS($AL$7:$AL$36,">=1,1",$AL$7:$AL$36,"<=2") -> 0 | AK46: =COUNTIFS($AL$7:$AL$36,"<=1") -> 0 | AN46: количество детей | AQ46: 30 | AR46: =COUNTIF($AV$7:$AV$36,">=3,1") -> 0 | AS46: =COUNTIFS($AV$7:$AV$36,">=2,1",$AV$7:$AV$36,"<=3") -> 0 | AT46: =COUNTIFS($AV$7:$AV$36,">=1,1",$AV$7:$AV$36,"<=2") -> 0 | AU46: =COUNTIFS($AV$7:$AV$36,"<=1") -> 0
C47: % | E47: 100 | F47: =F46*E47/E46 -> 0 | G47: =G46*E47/E46 -> 0 | H47: =H46*E47/E46 -> 0 | I47: =I46*E47/E46 -> 0 | M47: % | P47: 100 | Q47: =Q46*P47/P46 -> 0 | R47: =R46*P47/P46 -> 0 | S47: =S46*P47/P46 -> 0 | T47: =T46*P47/P46 -> 0 | V47: % | Y47: 100 | Z47: =Z46*Y47/Y46 -> 0 | AA47: =AA46*Y47/Y46 -> 0 | AB47: =AB46*Y47/Y46 -> 0 | AC47: =AC46*Y47/Y46 -> 0 | AE47: % | AG47: 100 | AH47: =AH46*AG47/AG46 -> 0 | AI47: =AI46*AG47/AG46 -> 0 | AJ47: =AJ46*AG47/AG46 -> 0 | AK47: =AK46*AG47/AG46 -> 0 | AN47: % | AQ47: 100 | AR47: =AR46*AQ47/AQ46 -> 0 | AS47: =AS46*AQ47/AQ46 -> 0 | AT47: =AT46*AQ47/AQ46 -> 0 | AU47: =AU46*AQ47/AQ46 -> 0
E49: В-ВЫСОКИЙ С- СРЕДНИЙ НС - НИЖЕ СРЕДНЕГО Н - НИЗКИЙ

Sheet ХЭ
A1: Образовательная область «Художественно-эстетическое развитие»
C3: ПРИОБЩЕНИЕ К ИСКУССТВУ | K3: ИЗОБРАЗИТЕЛЬНАЯ ДЕЯТЕЛЬНОСТЬ | W3: КОНСТРУКТИВНАЯ ДЕЯТЕЛЬНОСТЬ | AC3: МУЗЫКАЛЬНАЯ ДЕЯТЕЛЬНОСТЬ | AU3: ТЕАТРАЛИЗОВАННАЯ И КУЛЬТУРНО-ДОСУГОВАЯ ДЕЯТЕЛЬНОСТЬ
A4: №п/п | B4: ФИ ребенка | C4: Проявляет эмоциональную отзывчивость на доступные пониманию детей произведения озобразительного искусства | E4: Обращает внимание на характер народных игрушек (веселая, забавная и т.д.) | G4: Проявляет интерес к природе и отражает в доступной изобразительной и муз-ой деятельности | I4: среднее значение | K4: Изобразительная деятельность | U4: среднее значение | W4: Конструктивная деятельность | AA4: среднее значение | AC4: Слушание | AG4: Пение | AI4: Музыкально-ритмические движения | AS4: среднее значение | AU4: Следит за действиями героев кукольного театра | AW4: Имитирует характерные действия персонажей (птички летают, козленок скачет) | AY4: Принимает посильное участие в играх с пением | BA4: среднее значение
K5: рисование | Q5: лепка | W5: Сооружает элементарные постройки по образцу | Y5: Сооружает постройки самостоятельно | AC5: Узнает знакомые мелодии и различает высоту звуков (высокий - низкий) | AE5: Внимательно слушает спокойные и бодрые песни, понимает о ком (о чем) поется | AG5: Вместе с педагогом подпевает в песне музыкальные фразы | AI5: Воспроизводит движения, показываемые взрослым (хлопает, топает ногой, полуприседает, совершает повороты кистей рук) | AK5: Начинает движения с началом музыки и заканчивает с ее окончанием | AM5: Передает образы (птичка летает, зайка прыгает, мишка идет) | AO5: Выполняет плясовые движения по кругу, врассыпную | AQ5: Меняет движения с изменением характера музыки или содержания песни
K6: Знает, что карандашами, фломастерами, красками и кистью можно рисовать | M6: Различает цвета карандашей, фломастеров, правильно называет их | O6: Рисует разные линии, пересекая их, уподобляя предметам | Q6: Раскатывает комочек глины круговыми движениями ладоней | S6: Соединяет две вылепленные формы в один предмет
C7: н.г. | D7: к.г. | E7: н.г. | F7: к.г. | G7: н.г. | H7: к.г. | I7: н.г. | J7: к.г. | K7: н.г. | L7: к.г. | M7: н.г. | N7: к.г. | O7: н.г. | P7: к.г. | Q7: н.г. | R7: к.г. | S7: н.г. | T7: к.г. | U7: н.г. | V7: к.г. | W7: н.г. | X7: к.г. | Y7: н.г. | Z7: к.г. | AA7: н.г. | AB7: к.г. | AC7: н.г. | AD7: к.г. | AE7: н.г. | AF7: к.г. | AG7: н.г. | AH7: к.г. | AI7: н.г. | AJ7: к.г. | AK7: н.г. | AL7: к.г. | AM7: н.г. | AN7: к.г. | AO7: н.г. | AP7: к.г. | AQ7: н.г. | AR7: к.г. | AS7: н.г. | AT7: к.г. | AU7: н.г. | AV7: к.г. | AW7: н.г. | AX7: к.г. | AY7: н.г. | AZ7: к.г. | BA7: н.г. | BB7: к.г.
A8: 1 | B8: =СК!B6 -> Иванов 1 | C8: 2 | D8: 3 | E8: 2 | F8: 3 | G8: 4 | H8: 5 | I8: =AVERAGE(C8,E8,G8) -> 2.666666667 | J8: =AVERAGE(D8,F8,H8) -> 3.666666667 | K8: 2 | L8: 3 | M8: 3 | N8: 4 | O8: 3 | P8: 4 | Q8: 3 | R8: 4 | S8: 2 | T8: 3 | U8: =AVERAGE(K8,M8,O8,Q8,S8) -> 2.6 | V8: =AVERAGE(L8,N8,P8,R8,T8) -> 3.6 | W8: 4 | X8: 5 | Y8: 4 | Z8: 5 | AA8: =AVERAGE(W8,Y8) -> 4 | AB8: =AVERAGE(X8,Z8) -> 5 | AC8: 2 | AD8: 3 | AE8: 2 | AF8: 3 | AG8: 2 | AH8: 3 | AI8: 2 | AJ8: 3 | AK8: 1 | AL8: 2 | AM8: 1 | AN8: 2 | AO8: 2 | AP8: 3 | AQ8: 2 | AR8: 3 | AS8: =AVERAGE(AC8,AE8,AG8,AI8,AK8,AM8,AO8,AQ8) -> 1.75 | AT8: =AVERAGE(AD8,AF8,AH8,AJ8,AL8,AN8,AP8,AR8) -> 2.75 | AU8: 4 | AV8: 5 | AW8: 4 | AX8: 5 | AY8: 5 | AZ8: 5 | BA8: =AVERAGE(AU8,AW8,AY8) -> 4.333333333 | BB8: =AVERAGE(AV8,AX8,AZ8) -> 5
A9: 2 | B9: =СК!B7 -> Иванов 2 | C9: 4 | D9: 5 | E9: 4 | F9: 5 | G9: 4 | H9: 5 | I9: =AVERAGE(C9,E9,G9) -> 4 | J9: =AVERAGE(D9,F9,H9) -> 5 | U9: =AVERAGE(K9,M9,O9,Q9,S9) ->  | V9: =AVERAGE(L9,N9,P9,R9,T9) ->  | AA9: =AVERAGE(W9,Y9) ->  | AB9: =AVERAGE(X9,Z9) ->  | AC9: 3 | AD9: 4 | AE9: 3 | AF9: 4 | AG9: 3 | AH9: 4 | AI9: 3 | AJ9: 4 | AK9: 3 | AL9: 4 | AM9: 3 | AN9: 4 | AO9: 3 | AP9: 4 | AQ9: 3 | AR9: 4 | AS9: =AVERAGE(AC9,AE9,AG9,AI9,AK9,AM9,AO9,AQ9) -> 3 | AT9: =AVERAGE(AD9,AF9,AH9,AJ9,AL9,AN9,AP9,AR9) -> 4 | AU9: 3 | AV9: 4 | AW9: 3 | AX9: 4 | AY9: 3 | AZ9: 4 | BA9: =AVERAGE(AU9,AW9,AY9) -> 3 | BB9: =AVERAGE(AV9,AX9,AZ9) -> 4
A10: 3 | B10: =СК!B8 -> Иванов 3 | C10: 3 | D10: 4 | E10: 3 | F10: 4 | G10: 4 | H10: 5 | I10: 3.333333333 | J10: 4.333333333 | AU10: 3 | AV10: 4 | AW10: 2 | AX10: 3 | AY10: 2 | AZ10: 3 | BA10: 2.333333333 | BB10: 3.333333333
A11: 4 | B11: =СК!B9 -> Иванов 4
A12: 5 | B12: =СК!B10 -> Иванов 5
A13: 6 | B13: =СК!B11 -> Иванов 6
A14: 7 | B14: =СК!B12 -> Иванов 7
A15: 8 | B15: =СК!B13 -> Иванов 8
A16: 9 | B16: =СК!B14 -> Иванов 9
A17: 10 | B17: =СК!B15 -> Иванов 10
A18: 11 | B18: =СК!B16 -> 0
A19: 12 | B19: =СК!B17 -> 0
A20: 13 | B20: =СК!B18 -> 0
A21: 14 | B21: =СК!B19 -> 0
A22: 15 | B22: =СК!B20 -> 0
A23: 16 | B23: =СК!B21 -> 0
A24: 17 | B24: =СК!B22 -> 0
A25: 18 | B25: =СК!B23 -> 0
A26: 19 | B26: =СК!B24 -> 0
A27: 20 | B27: =СК!B25 -> 0
A28: 21 | B28: =СК!B26 -> 0
A29: 22 | B29: =СК!B27 -> 0
A30: 23 | B30: =СК!B28 -> 0
A31: 24 | B31: =СК!B29 -> 0
A32: 25 | B32: =СК!B30 -> 0
A33: 26 | B33: =СК!B31 -> 0
A34: 27 | B34: =СК!B32 -> 0
A35: 28 | B35: =СК!B33 -> 0
A36: 29 | B36: =СК!B34 -> 0
A37: 30 | B37: =СК!B35 -> 0
B38: среднее значение: | C38: =AVERAGE(C8:C37) -> 3 | D38: =AVERAGE(D8:D37) -> 4 | E38: 3 | F38: 4 | G38: 4 | H38: 5 | I38: =AVERAGE(C38,E38,G38) -> 3.333333333 | J38: =AVERAGE(D38,F38,H38) -> 4.333333333 | K38: =AVERAGE(K8:K37) -> 2 | L38: =AVERAGE(L8:L37) -> 3 | M38: 3 | N38: 4 | O38: 3 | P38: 4 | Q38: 3 | R38: 4 | S38: 2 | T38: 3 | U38: =AVERAGE(K38,M38,O38,Q38,S38) -> 2.6 | V38: =AVERAGE(L38,N38,P38,R38,T38) -> 3.6 | W38: =AVERAGE(W8:W37) -> 4 | X38: =AVERAGE(X8:X37) -> 5 | Y38: 4 | Z38: 5 | AA38: =AVERAGE(W38,Y38) -> 4 | AB38: =AVERAGE(X38,Z38) -> 5 | AC38: =AVERAGE(AC8:AC37) -> 2.5 | AD38: =AVERAGE(AD8:AD37) -> 3.5 | AE38: 2.5 | AF38: 3.5 | AG38: 2.5 | AH38: 3.5 | AI38: 2.5 | AJ38: 3.5 | AK38: 2 | AL38: 3 | AM38: 2 | AN38: 3 | AO38: 2.5 | AP38: 3.5 | AQ38: 2.5 | AR38: 3.5 | AS38: =AVERAGE(AC38,AE38,AG38,AI38,AK38,AM38,AO38,AQ38) -> 2.375 | AT38: =AVERAGE(AD38,AF38,AH38,AJ38,AL38,AN38,AP38,AR38) -> 3.375 | AU38: =AVERAGE(AU8:AU37) -> 3.333333333 | AV38: =AVERAGE(AV8:AV37) -> 4.333333333 | AW38: =AVERAGE(AW8:AW37) -> 3 | AX38: =AVERAGE(AX8:AX37) -> 4 | AY38: =AVERAGE(AY8:AY37) -> 3.333333333 | AZ38: =AVERAGE(AZ8:AZ37) -> 4 | BA38: =AVERAGE(AU38,AW38,AY38) -> 3.222222222 | BB38: =AVERAGE(AV38,AX38,AZ38) -> 4.111111111
B40: ПРИОБЩЕНИЕ К ИСКУССТВУ. Начало года | K40: ИЗОБРАЗИТЕЛЬНАЯ ДЕЯТЕЛЬНОСТЬ. Начало года | V40: КОНСТРУКТИВНАЯ ДЕЯТЕЛЬНОСТЬ. Начало года | AF40: МУЗЫКАЛЬНАЯ ДЕЯТЕЛЬНОСТЬ. Начало года | AU40: ТЕАТРАЛИЗОВАННАЯ И КУЛЬТУРНО-ДОСУГОВАЯ ДЕЯТЕЛЬНОСТЬ. Начало года
C41: всего | D41: В | E41: С | F41: НС | G41: Н | N41: всего | O41: В | P41: С | Q41: НС | R41: Н | Y41: всего | Z41: В | AA41: С | AB41: НС | AC41: Н | AI41: всего | AJ41: В | AK41: С | AL41: НС | AM41: Н | AX41: всего | AY41: В | AZ41: С | BA41: НС | BB41: Н
B42: количество детей | C42: =COUNTA($B$8:$B$37) -> 30 | D42: =COUNTIF($I$8:$I$37,">=3,1") -> 2 | E42: =COUNTIFS($I$8:$I$37,">=2,1",$I$8:$I$37,"<=3") -> 1 | F42: =COUNTIFS($I$8:$I$37,">=1,1",$I$8:$I$37,"<=2") -> 0 | G42: =COUNTIFS($I$8:$I$37,"<=1") -> 0 | K42: количество детей | N42: =COUNTA($B$8:$B$37) -> 30 | O42: =COUNTIF($U$8:$U$37,">=3,1") -> 0 | P42: =COUNTIFS($U$8:$U$37,">=2,1",$U$8:$U$37,"<=3") -> 1 | Q42: =COUNTIFS($U$8:$U$37,">=1,1",$U$8:$U$37,"<=2") -> 0 | R42: =COUNTIFS($U$8:$U$37,"<=1") -> 0 | V42: количество детей | Y42: =COUNTA($B$8:$B$37) -> 30 | Z42: =COUNTIF($AA$8:$AA$37,">=3,1") -> 1 | AA42: =COUNTIFS($AA$8:$AA$37,">=2,1",$AA$8:$AA$37,"<=3") -> 0 | AB42: =COUNTIFS($AA$8:$AA$37,">=1,1",$AA$8:$AA$37,"<=2") -> 0 | AC42: =COUNTIFS($AA$8:$AA$37,"<=1") -> 0 | AF42: количество детей | AI42: 30 | AJ42: =COUNTIF($AS$8:$AS$37,">=3,1") -> 0 | AK42: =COUNTIFS($AS$8:$AS$37,">=2,1",$AS$8:$AS$37,"<=3") -> 1 | AL42: =COUNTIFS($AS$8:$AS$37,">=1,1",$AS$8:$AS$37,"<=2") -> 1 | AM42: =COUNTIFS($AS$8:$AS$37,"<=1") -> 0 | AU42: количество детей | AX42: =COUNTA($B$8:$B$37) -> 30 | AY42: =COUNTIF($BA$8:$BA$37,">=3,1") -> 1 | AZ42: =COUNTIFS($BA$8:$BA$37,">=2,1",$BA$8:$BA$37,"<=3") -> 2 | BA42: =COUNTIFS($BA$8:$BA$37,">=1,1",$BA$8:$BA$37,"<=2") -> 0 | BB42: =COUNTIFS($BA$8:$BA$37,"<=1") -> 0
B43: % | C43: 100 | D43: =D42*C43/C42 -> 6.666666667 | E43: =E42*C43/C42 -> 3.333333333 | F43: =F42*C43/C42 -> 0 | G43: =G42*C43/C42 -> 0 | K43: % | N43: 100 | O43: =O42*N43/N42 -> 0 | P43: =P42*N43/N42 -> 3.333333333 | Q43: =Q42*N43/N42 -> 0 | R43: =R42*N43/N42 -> 0 | V43: % | Y43: 100 | Z43: =Z42*Y43/Y42 -> 3.333333333 | AA43: =AA42*Y43/Y42 -> 0 | AB43: =AB42*Y43/Y42 -> 0 | AC43: =AC42*Y43/Y42 -> 0 | AF43: % | AI43: 100 | AJ43: =AJ42*AI43/AI42 -> 0 | AK43: =AK42*AI43/AI42 -> 3.333333333 | AL43: =AL42*AI43/AI42 -> 3.333333333 | AM43: =AM42*AI43/AI42 -> 0 | AU43: % | AX43: 100 | AY43: =AY42*AX43/AX42 -> 3.333333333 | AZ43: =AZ42*AX43/AX42 -> 6.666666667 | BA43: =BA42*AX43/AX42 -> 0 | BB43: =BB42*AX43/AX42 -> 0
B45: ПРИОБЩЕНИЕ К ИСКУССТВУ. Конец года | K45: ИЗОБРАЗИТЕЛЬНАЯ ДЕЯТЕЛЬНОСТЬ. Конец года | V45: КОНСТРУКТИВНАЯ ДЕЯТЕЛЬНОСТЬ. Конец года | AF45: МУЗЫКАЛЬНАЯ ДЕЯТЕЛЬНОСТЬ. Конец года | AU45: ТЕАТРАЛИЗОВАННАЯ И КУЛЬТУРНО-ДОСУГОВАЯ ДЕЯТЕЛЬНОСТЬ. Конец года
C46: всего | D46: В | E46: С | F46: НС | G46: Н | N46: всего | O46: В | P46: С | Q46: НС | R46: Н | Y46: всего | Z46: В | AA46: С | AB46: НС | AC46: Н | AI46: всего | AJ46: В | AK46: С | AL46: НС | AM46: Н | AX46: всего | AY46: В | AZ46: С | BA46: НС | BB46: Н
B47: количество детей | C47: =COUNTA($B$8:$B$37) -> 30 | D47: =COUNTIF($J$8:$J$37,">=3,1") -> 3 | E47: =COUNTIFS($J$8:$J$37,">=2,1",$J$8:$J$37,"<=3") -> 0 | F47: =COUNTIFS($J$8:$J$37,">=1,1",$J$8:$J$37,"<=2") -> 0 | G47: =COUNTIFS($J$8:$J$37,"<=1") -> 0 | K47: количество детей | N47: =COUNTA($B$8:$B$37) -> 30 | O47: =COUNTIF($V$8:$V$37,">=3,1") -> 1 | P47: =COUNTIFS($V$8:$V$37,">=2,1",$V$8:$V$37,"<=3") -> 0 | Q47: =COUNTIFS($V$8:$V$37,">=1,1",$V$8:$V$37,"<=2") -> 0 | R47: =COUNTIFS($V$8:$V$37,"<=1") -> 0 | V47: количество детей | Y47: =COUNTA($B$8:$B$37) -> 30 | Z47: =COUNTIF($AB$8:$AB$37,">=3,1") -> 1 | AA47: =COUNTIFS($AB$8:$AB$37,">=2,1",$AB$8:$AB$37,"<=3") -> 0 | AB47: =COUNTIFS($AB$8:$AB$37,">=1,1",$AB$8:$AB$37,"<=2") -> 0 | AC47: =COUNTIFS($AB$8:$AB$37,"<=1") -> 0 | AF47: количество детей | AI47: 30 | AJ47: =COUNTIF($AT$8:$AT$37,">=3,1") -> 1 | AK47: =COUNTIFS($AT$8:$AT$37,">=2,1",$AT$8:$AT$37,"<=3") -> 1 | AL47: =COUNTIFS($AT$8:$AT$37,">=1,1",$AT$8:$AT$37,"<=2") -> 0 | AM47: =COUNTIFS($AT$8:$AT$37,"<=1") -> 0 | AU47: количество детей | AX47: =COUNTA($B$8:$B$37) -> 30 | AY47: =COUNTIF($BB$8:$BB$37,">=3,1") -> 3 | AZ47: =COUNTIFS($BB$8:$BB$37,">=2,1",$BB$8:$BB$37,"<=3") -> 0 | BA47: =COUNTIFS($BB$8:$BB$37,">=1,1",$BB$8:$BB$37,"<=2") -> 0 | BB47: =COUNTIFS($BB$8:$BB$37,"<=1") -> 0
B48: % | C48: 100 | D48: =D47*C48/C47 -> 10 | E48: =E47*C48/C47 -> 0 | F48: =F47*C48/C47 -> 0 | G48: =G47*C48/C47 -> 0 | K48: % | N48: 100 | O48: =O47*N48/N47 -> 3.333333333 | P48: =P47*N48/N47 -> 0 | Q48: =Q47*N48/N47 -> 0 | R48: =R47*N48/N47 -> 0 | V48: % | Y48: 100 | Z48: =Z47*Y48/Y47 -> 3.333333333 | AA48: =AA47*Y48/Y47 -> 0 | AB48: =AB47*Y48/Y47 -> 0 | AC48: =AC47*Y48/Y47 -> 0 | AF48: % | AI48: 100 | AJ48: =AJ47*AI48/AI47 -> 3.333333333 | AK48: =AK47*AI48/AI47 -> 3.333333333 | AL48: =AL47*AI48/AI47 -> 0 | AM48: =AM47*AI48/AI47 -> 0 | AU48: % | AX48: 100 | AY48: =AY47*AX48/AX47 -> 10 | AZ48: =AZ47*AX48/AX47 -> 0 | BA48: =BA47*AX48/AX47 -> 0 | BB48: =BB47*AX48/AX47 -> 0
C50: В-ВЫСОКИЙ С- СРЕДНИЙ НС - НИЖЕ СРЕДНЕГО Н - НИЗКИЙ

Sheet ФР
A1: Образовательная область «Физическое развитие»
C3: ОСНОВНАЯ ГИМНАСТИКА. ПОДВИЖНЫЕ ИГРЫ. СПОРТИВНЫЕ УПРАЖНЕНИЯ | U3: ФОРМИРОВАНИЕ ОСНОВ ЗДОРОВОГО ОБРАЗА ЖИЗНИ.
A4: №п/п | B4: ФИ ребенка | C4: Прокатывает мяч педагогу, друг другу двумя руками стоя и сидя | E4: Бросает мяч от груди двумя руками, снизу, из-за головы. Ловит мяч, брошенный педагогом с расстояния 1м | G4: Ходит врассыпную и в заданном направлении, между предметами, по кругу по одному и парами, взявшись за руки | I4: Бегает стайкой за педагогом, в заданном и в разных направлениях | K4: Выполняет прыжки на двух ногах на месте, с продвижением вперед, в длину с места | M4: Перешагивает через предметы (высота 10-15см), поднимается без помощи рук на скамейку | O4: По образцу педагога совместно выполняет ОРУ | Q4: Играет в подвижные игры с простым содержанием, с текстом, с включением музыкально-ритмических упражнений | S4: среднее значение | U4: Самостоятельно и правильно моет руки перед едой, после прогулки и посещения туалета, чистит зубы, пользуется предметами личной гигиены | W4: Умеет оценивать свой внешний вид, приводит в порядок одежду | Y4: Проявляет эмоциональную отзывчивость на выполнение физических упражнений | AA4: среднее значение
C6: н.г. | D6: к.г. | E6: н.г. | F6: к.г. | G6: н.г. | H6: к.г. | I6: н.г. | J6: к.г. | K6: н.г. | L6: к.г. | M6: н.г. | N6: к.г. | O6: н.г. | P6: к.г. | Q6: н.г. | R6: к.г. | S6: н.г. | T6: к.г. | U6: н.г. | V6: к.г. | W6: н.г. | X6: к.г. | Y6: н.г. | Z6: к.г. | AA6: н.г. | AB6: к.г.
A7: 1 | B7: =СК!B6 -> Иванов 1 | C7: 2 | D7: 3 | E7: 2 | F7: 3 | G7: 2 | H7: 3 | I7: 2 | J7: 3 | K7: 3 | L7: 4 | M7: 3 | N7: 4 | O7: 2 | P7: 4 | Q7: 3 | R7: 5 | S7: =AVERAGE(C7,E7,G7,I7,K7,M7,O7,Q7) -> 2.375 | T7: =AVERAGE(D7,F7,H7,J7,L7,N7,P7,R7) -> 3.625 | U7: 3 | V7: 4 | W7: 3 | X7: 4 | Y7: 3 | Z7: 4 | AA7: =AVERAGE(U7,W7,Y7) -> 3 | AB7: =AVERAGE(V7,X7,Z7) -> 4
A8: 2 | B8: =СК!B7 -> Иванов 2 | C8: 3 | D8: 4 | E8: 2 | F8: 3 | G8: 2 | H8: 3 | I8: 2 | J8: 3 | K8: 2 | L8: 3 | M8: 2 | N8: 3 | O8: 2 | P8: 3 | Q8: 2 | R8: 3 | S8: =AVERAGE(C8,E8,G8,I8,K8,M8,O8,Q8) -> 2.125 | T8: =AVERAGE(D8,F8,H8,J8,L8,N8,P8,R8) -> 3.125 | U8: 2 | V8: 3 | W8: 2 | X8: 3 | Y8: 2 | Z8: 3 | AA8: =AVERAGE(U8,W8,Y8) -> 2 | AB8: =AVERAGE(V8,X8,Z8) -> 3
A9: 3 | B9: =СК!B8 -> Иванов 3
A10: 4 | B10: =СК!B9 -> Иванов 4
A11: 5 | B11: =СК!B10 -> Иванов 5
A12: 6 | B12: =СК!B11 -> Иванов 6
A13: 7 | B13: =СК!B12 -> Иванов 7
A14: 8 | B14: =СК!B13 -> Иванов 8
A15: 9 | B15: =СК!B14 -> Иванов 9
A16: 10 | B16: =СК!B15 -> Иванов 10
A17: 11 | B17: =СК!B16 -> 0
A18: 12 | B18: =СК!B17 -> 0
A19: 13 | B19: =СК!B18 -> 0
A20: 14 | B20: =СК!B19 -> 0
A21: 15 | B21: =СК!B20 -> 0
A22: 16 | B22: =СК!B21 -> 0
A23: 17 | B23: =СК!B22 -> 0
A24: 18 | B24: =СК!B23 -> 0
A25: 19 | B25: =СК!B24 -> 0
A26: 20 | B26: =СК!B25 -> 0
A27: 21 | B27: =СК!B26 -> 0
A28: 22 | B28: =СК!B27 -> 0
A29: 23 | B29: =СК!B28 -> 0
A30: 24 | B30: =СК!B29 -> 0
A31: 25 | B31: =СК!B30 -> 0
A32: 26 | B32: =СК!B31 -> 0
A33: 27 | B33: =СК!B32 -> 0
A34: 28 | B34: =СК!B33 -> 0
A35: 29 | B35: =СК!B34 -> 0
A36: 30 | B36: =СК!B35 -> 0
B37: среднее значение: | C37: =AVERAGE(C7:C36) -> 2.5 | D37: =AVERAGE(D7:D36) -> 3.5 | E37: 2 | F37: =AVERAGE(F7:F36) -> 3 | G37: 2 | H37: 3 | I37: 2 | J37: 3 | K37: 2.5 | L37: 3.5 | M37: 2.5 | N37: 3.5 | O37: 2 | P37: 3.5 | Q37: 2.5 | R37: 4 | S37: =AVERAGE(C37,E37,G37,I37,K37,M37,O37,Q37) -> 2.25 | T37: 3.375 | U37: =AVERAGE(U7:U36) -> 2.5 | V37: =AVERAGE(V7:V36) -> 3.5 | W37: =AVERAGE(W7:W36) -> 2.5 | X37: =AVERAGE(X7:X36) -> 3.5 | Y37: =AVERAGE(Y7:Y36) -> 2.5 | Z37: =AVERAGE(Z7:Z36) -> 3.5 | AA37: 2.5 | AB37: 3.5
C39: ОСНОВНАЯ ГИМНАСТИКА. ПОДВИЖНЫЕ ИГРЫ. СПОРТИВНЫЕ УПРАЖНЕНИЯ. Начало года | U39: ФОРМИРОВАНИЕ ОСНОВ ЗДОРОВОГО ОБРАЗА ЖИЗНИ. Начало года
F40: всего | G40: В | H40: С | I40: НС | J40: Н | X40: всего | Y40: В | Z40: С | AA40: НС | AB40: Н
C41: количество детей | F41: =COUNTA($B$8:$B$37) -> 30 | G41: =COUNTIF($S$7:$S$36,">=3,1") -> 0 | H41: =COUNTIFS($S$7:$S$36,">=2,1",$S$7:$S$36,"<=3") -> 2 | I41: =COUNTIFS($S$7:$S$36,">=1,1",$S$7:$S$36,"<=2") -> 0 | J41: =COUNTIFS($S$7:$S$36,"<=1") -> 0 | U41: количество детей | X41: =COUNTA($B$8:$B$37) -> 30 | Y41: =COUNTIF($AA$7:$AA$36,">=3,1") -> 0 | Z41: =COUNTIFS($AA$7:$AA$36,">=2,1",$AA$7:$AA$36,"<=3") -> 1 | AA41: =COUNTIFS($AA$7:$AA$36,">=1,1",$AA$7:$AA$36,"<=2") -> 1 | AB41: =COUNTIFS($AA$7:$AA$36,"<=1") -> 0
C42: % | F42: 100 | G42: =G41*F42/F41 -> 0 | H42: =H41*F42/F41 -> 6.666666667 | I42: =I41*F42/F41 -> 0 | J42: =J41*F42/F41 -> 0 | U42: % | X42: 100 | Y42: =Y41*X42/X41 -> 0 | Z42: =Z41*X42/X41 -> 3.333333333 | AA42: =AA41*X42/X41 -> 3.333333333 | AB42: =AB41*X42/X41 -> 0
C44: ОСНОВНАЯ ГИМНАСТИКА. ПОДВИЖНЫЕ ИГРЫ. СПОРТИВНЫЕ УПРАЖНЕНИЯ. Конец года | U44: ФОРМИРОВАНИЕ ОСНОВ ЗДОРОВОГО ОБРАЗА ЖИЗНИ. Конец года
F45: всего | G45: В | H45: С | I45: НС | J45: Н | X45: всего | Y45: В | Z45: С | AA45: НС | AB45: Н
C46: количество детей | F46: =COUNTA($B$8:$B$37) -> 30 | G46: =COUNTIF($T$7:$T$36,">=3,1") -> 2 | H46: =COUNTIFS($T$7:$T$36,">=2,1",$T$7:$T$36,"<=3") -> 0 | I46: =COUNTIFS($T$7:$T$36,">=1,1",$T$7:$T$36,"<=2") -> 0 | J46: =COUNTIFS($T$7:$T$36,"<=1") -> 0 | U46: количество детей | X46: =COUNTA($B$8:$B$37) -> 30 | Y46: =COUNTIF($AB$7:$AB$36,">=3,1") -> 1 | Z46: =COUNTIFS($AB$7:$AB$36,">=2,1",$AB$7:$AB$36,"<=3") -> 1 | AA46: =COUNTIFS($AB$7:$AB$36,">=1,1",$AB$7:$AB$36,"<=2") -> 0 | AB46: =COUNTIFS($AB$7:$AB$36,"<=1") -> 0
C47: % | F47: 100 | G47: =G46*F47/F46 -> 6.666666667 | H47: =H46*F47/F46 -> 0 | I47: =I46*F47/F46 -> 0 | J47: =J46*F47/F46 -> 0 | U47: % | X47: 100 | Y47: =Y46*X47/X46 -> 3.333333333 | Z47: =Z46*X47/X46 -> 3.333333333 | AA47: =AA46*X47/X46 -> 0 | AB47: =AB46*X47/X46 -> 0
D49: В-ВЫСОКИЙ С- СРЕДНИЙ НС - НИЖЕ СРЕДНЕГО Н - НИЗКИЙ

Sheet ИТОГОВАЯ ПО ОО
A1: Результаты мониторинга _______ группы №__ по образовательным областям 202_-202_гг.
A3: № | B3: ФИ ребенка | C3: Социально-коммуникативное развитие | E3: Познавательное развитие | K3: Речевое развитие | U3: Художественно-эстетическое развитие | AE3: Физическое развитие | AI3: Итог
E5: СЕНСОРНЫЕ ЭТАЛОНЫ И ПОЗНАВАТЕЛЬНЫЕ ДЕЙСТВИЯ | G5: МАТЕМАТИЧЕСКИЕ ПРЕДСТАВЛЕНИЯ | I5: ОКРУЖАЮЩИЙ МИР. ПРИРОДА | K5: ФОРМИРОВАНИЕ СЛОВАРЯ | M5: ЗВУКОВАЯ КУЛЬТУРА РЕЧИ | O5: ГРАММАТИЧЕСКИЙ СТРОЙ РЕЧИ | Q5: СВЯЗНАЯ РЕЧЬ | S5: ИНТЕРЕС К ХУДОЖЕСТВЕННОЙ ЛИТЕРАТУРЕ | U5: ПРИОБЩЕНИЕ К ИСКУССТВУ | W5: ИЗОБРАЗИТЕЛЬНАЯ ДЕЯТЕЛЬНОСТЬ | Y5: КОНСТРУКТИВНАЯ ДЕЯТЕЛЬНОСТЬ | AA5: МУЗЫКАЛЬНАЯ ДЕЯТЕЛЬНОСТЬ | AC5: ТЕАТРАЛИЗОВАННАЯ И КУЛЬТУРНО-ДОСУГОВАЯ ДЕЯТЕЛЬНОСТЬ | AE5: ОСНОВНАЯ ГИМНАСТИКА. ПОДВИЖНЫЕ ИГРЫ. СПОРТИВНЫЕ УПРАЖНЕНИЯ | AG5: ФОРМИРОВАНИЕ ОСНОВ ЗДОРОВОГО ОБРАЗА ЖИЗНИ
C6: н.г. | D6: к.г. | E6: н.г. | F6: к.г. | G6: н.г. | H6: к.г. | I6: н.г. | J6: к.г. | K6: н.г. | L6: к.г. | M6: н.г. | N6: к.г. | O6: н.г. | P6: к.г. | Q6: н.г. | R6: к.г. | S6: н.г. | T6: к.г. | U6: н.г. | V6: к.г. | W6: н.г. | X6: к.г. | Y6: н.г. | Z6: к.г. | AA6: н.г. | AB6: к.г. | AC6: н.г. | AD6: к.г. | AE6: н.г. | AF6: к.г. | AG6: н.г. | AH6: к.г. | AI6: сен | AJ6: май
A7: 1 | B7: =СК!B6 -> Иванов 1 | C7: =СК!W6 -> 3.226666667 | D7: =СК!X6 ->  | E7: =ПР!M7 ->  | F7: =ПР!N7 ->  | G7: =ПР!Y7 ->  | H7: =ПР!Z7 ->  | I7: =ПР!AM7 ->  | J7: =ПР!AN7 ->  | K7: =РР!K7 ->  | L7: =РР!L7 ->  | M7: =РР!S7 ->  | N7: =РР!T7 ->  | O7: =РР!AC7 ->  | P7: =РР!AD7 ->  | Q7: =РР!AK7 ->  | R7: =РР!AL7 ->  | S7: =РР!AU7 ->  | T7: =РР!AV7 ->  | U7: =ХЭ!I8 -> 2.666666667 | V7: =ХЭ!J8 -> 3.666666667 | W7: =ХЭ!U8 -> 2.6 | X7: =ХЭ!V8 -> 3.6 | Y7: =ХЭ!AA8 -> 4 | Z7: =ХЭ!AB8 -> 5 | AA7: =ХЭ!AS8 -> 1.75 | AB7: =ХЭ!AT8 -> 2.75 | AC7: =ХЭ!BA8 -> 4.333333333 | AD7: =ХЭ!BB8 -> 5 | AE7: =ФР!S7 -> 2.375 | AF7: =ФР!T7 -> 3.625 | AG7: =ФР!AA7 -> 3 | AH7: =ФР!AB7 -> 4 | AI7: =AVERAGE(C7,E7,G7,I7,K7,M7,O7,Q7,S7,U7,W7,Y7,AA7,AC7,AE7,AG7) ->  | AJ7: =AVERAGE(D7,F7,H7,J7,L7,N7,P7,R7,T7,V7,X7,Z7,AB7,AD7,AF7,AH7) -> 
A8: 2 | B8: =СК!B7 -> Иванов 2 | C8: =СК!W7 -> 3.223333333 | D8: =СК!X7 ->  | E8: =ПР!M8 ->  | F8: =ПР!N8 ->  | G8: =ПР!Y8 ->  | H8: =ПР!Z8 ->  | I8: =ПР!AM8 ->  | J8: =ПР!AN8 ->  | K8: =РР!K8 ->  | L8: =РР!L8 ->  | M8: =РР!S8 ->  | N8: =РР!T8 ->  | O8: =РР!AC8 ->  | P8: =РР!AD8 ->  | Q8: =РР!AK8 ->  | R8: =РР!AL8 ->  | S8: =РР!AU8 ->  | T8: =РР!AV8 ->  | U8: =ХЭ!I9 -> 4 | V8: =ХЭ!J9 -> 5 | W8: =ХЭ!U9 ->  | X8: =ХЭ!V9 ->  | Y8: =ХЭ!AA9 ->  | Z8: =ХЭ!AB9 ->  | AA8: =ХЭ!AS9 -> 3 | AB8: =ХЭ!AT9 -> 4 | AC8: =ХЭ!BA9 -> 3 | AD8: =ХЭ!BB9 -> 4 | AE8: =ФР!S8 -> 2.125 | AF8: =ФР!T8 -> 3.125 | AG8: =ФР!AA8 -> 2 | AH8: =ФР!AB8 -> 3 | AI8: =AVERAGE(C8,E8,G8,I8,K8,M8,O8,Q8,S8,U8,W8,Y8,AA8,AC8,AE8,AG8) ->  | AJ8: =AVERAGE(D8,F8,H8,J8,L8,N8,P8,R8,T8,V8,X8,Z8,AB8,AD8,AF8,AH8) -> 
A9: 3 | B9: =СК!B8 -> Иванов 3 | C9: =СК!W8 -> 3.226666667 | D9: =СК!X8 ->  | E9: =ПР!M9 ->  | F9: =ПР!N9 ->  | G9: =ПР!Y9 ->  | H9: =ПР!Z9 ->  | I9: =ПР!AM9 ->  | J9: =ПР!AN9 ->  | K9: =РР!K9 ->  | L9: =РР!L9 ->  | M9: =РР!S9 ->  | N9: =РР!T9 ->  | O9: =РР!AC9 ->  | P9: =РР!AD9 ->  | Q9: =РР!AK9 ->  | R9: =РР!AL9 ->  | S9: =РР!AU9 ->  | T9: =РР!AV9 ->  | U9: =ХЭ!I10 -> 3.333333333 | V9: =ХЭ!J10 -> 4.333333333 | W9: =ХЭ!U10 ->  | X9: =ХЭ!V10 ->  | Y9: =ХЭ!AA10 ->  | Z9: =ХЭ!AB10 ->  | AA9: =ХЭ!AS10 ->  | AB9: =ХЭ!AT10 ->  | AC9: =ХЭ!BA10 -> 2.333333333 | AD9: =ХЭ!BB10 -> 3.333333333 | AE9: =ФР!S9 ->  | AF9: =ФР!T9 ->  | AG9: =ФР!AA9 ->  | AH9: =ФР!AB9 -> 
A10: 4 | B10: =СК!B9 -> Иванов 4 | C10: =СК!W9 -> 3.226666667 | D10: =СК!X9 ->  | E10: =ПР!M10 ->  | F10: =ПР!N10 ->  | G10: =ПР!Y10 ->  | H10: =ПР!Z10 ->  | I10: =ПР!AM10 ->  | J10: =ПР!AN10 ->  | K10: =РР!K10 ->  | L10: =РР!L10 ->  | M10: =РР!S10 ->  | N10: =РР!T10 ->  | O10: =РР!AC10 ->  | P10: =РР!AD10 ->  | Q10: =РР!AK10 ->  | R10: =РР!AL10 ->  | S10: =РР!AU10 ->  | T10: =РР!AV10 ->  | U10: =ХЭ!I11 ->  | V10: =ХЭ!J11 ->  | W10: =ХЭ!U11 ->  | X10: =ХЭ!V11 ->  | Y10: =ХЭ!AA11 ->  | Z10: =ХЭ!AB11 ->  | AA10: =ХЭ!AS11 ->  | AB10: =ХЭ!AT11 ->  | AC10: =ХЭ!BA11 ->  | AD10: =ХЭ!BB11 ->  | AE10: =ФР!S10 ->  | AF10: =ФР!T10 ->  | AG10: =ФР!AA10 ->  | AH10: =ФР!AB10 -> 
A11: 5 | B11: =СК!B10 -> Иванов 5 | C11: =СК!W10 -> 3.226666667 | D11: =СК!X10 ->  | E11: =ПР!M11 ->  | F11: =ПР!N11 ->  | G11: =ПР!Y11 ->  | H11: =ПР!Z11 ->  | I11: =ПР!AM11 ->  | J11: =ПР!AN11 ->  | K11: =РР!K11 ->  | L11: =РР!L11 ->  | M11: =РР!S11 ->  | N11: =РР!T11 ->  | O11: =РР!AC11 ->  | P11: =РР!AD11 ->  | Q11: =РР!AK11 ->  | R11: =РР!AL11 ->  | S11: =РР!AU11 ->  | T11: =РР!AV11 ->  | U11: =ХЭ!I12 ->  | V11: =ХЭ!J12 ->  | W11: =ХЭ!U12 ->  | X11: =ХЭ!V12 ->  | Y11: =ХЭ!AA12 ->  | Z11: =ХЭ!AB12 ->  | AA11: =ХЭ!AS12 ->  | AB11: =ХЭ!AT12 ->  | AC11: =ХЭ!BA12 ->  | AD11: =ХЭ!BB12 ->  | AE11: =ФР!S11 ->  | AF11: =ФР!T11 ->  | AG11: =ФР!AA11 ->  | AH11: =ФР!AB11 -> 
A12: 6 | B12: =СК!B11 -> Иванов 6 | C12: =СК!W11 -> 3.226666667 | D12: =СК!X11 ->  | E12: =ПР!M12 ->  | F12: =ПР!N12 ->  | G12: =ПР!Y12 ->  | H12: =ПР!Z12 ->  | I12: =ПР!AM12 ->  | J12: =ПР!AN12 ->  | K12: =РР!K12 ->  | L12: =РР!L12 ->  | M12: =РР!S12 ->  | N12: =РР!T12 ->  | O12: =РР!AC12 ->  | P12: =РР!AD12 ->  | Q12: =РР!AK12 ->  | R12: =РР!AL12 ->  | S12: =РР!AU12 ->  | T12: =РР!AV12 ->  | U12: =ХЭ!I13 ->  | V12: =ХЭ!J13 ->  | W12: =ХЭ!U13 ->  | X12: =ХЭ!V13 ->  | Y12: =ХЭ!AA13 ->  | Z12: =ХЭ!AB13 ->  | AA12: =ХЭ!AS13 ->  | AB12: =ХЭ!AT13 ->  | AC12: =ХЭ!BA13 ->  | AD12: =ХЭ!BB13 ->  | AE12: =ФР!S12 ->  | AF12: =ФР!T12 ->  | AG12: =ФР!AA12 ->  | AH12: =ФР!AB12 -> 
A13: 7 | B13: =СК!B12 -> Иванов 7 | C13: =СК!W12 -> 3.226666667 | D13: =СК!X12 ->  | E13: =ПР!M13 ->  | F13: =ПР!N13 ->  | G13: =ПР!Y13 ->  | H13: =ПР!Z13 ->  | I13: =ПР!AM13 ->  | J13: =ПР!AN13 ->  | K13: =РР!K13 ->  | L13: =РР!L13 ->  | M13: =РР!S13 ->  | N13: =РР!T13 ->  | O13: =РР!AC13 ->  | P13: =РР!AD13 ->  | Q13: =РР!AK13 ->  | R13: =РР!AL13 ->  | S13: =РР!AU13 ->  | T13: =РР!AV13 ->  | U13: =ХЭ!I14 ->  | V13: =ХЭ!J14 ->  | W13: =ХЭ!U14 ->  | X13: =ХЭ!V14 ->  | Y13: =ХЭ!AA14 ->  | Z13: =ХЭ!AB14 ->  | AA13: =ХЭ!AS14 ->  | AB13: =ХЭ!AT14 ->  | AC13: =ХЭ!BA14 ->  | AD13: =ХЭ!BB14 ->  | AE13: =ФР!S13 ->  | AF13: =ФР!T13 ->  | AG13: =ФР!AA13 ->  | AH13: =ФР!AB13 -> 
A14: 8 | B14: =СК!B13 -> Иванов 8 | C14: =СК!W13 -> 3.226666667 | D14: =СК!X13 ->  | E14: =ПР!M14 ->  | F14: =ПР!N14 ->  | G14: =ПР!Y14 ->  | H14: =ПР!Z14 ->  | I14: =ПР!AM14 ->  | J14: =ПР!AN14 ->  | K14: =РР!K14 ->  | L14: =РР!L14 ->  | M14: =РР!S14 ->  | N14: =РР!T14 ->  | O14: =РР!AC14 ->  | P14: =РР!AD14 ->  | Q14: =РР!AK14 ->  | R14: =РР!AL14 ->  | S14: =РР!AU14 ->  | T14: =РР!AV14 ->  | U14: =ХЭ!I15 ->  | V14: =ХЭ!J15 ->  | W14: =ХЭ!U15 ->  | X14: =ХЭ!V15 ->  | Y14: =ХЭ!AA15 ->  | Z14: =ХЭ!AB15 ->  | AA14: =ХЭ!AS15 ->  | AB14: =ХЭ!AT15 ->  | AC14: =ХЭ!BA15 ->  | AD14: =ХЭ!BB15 ->  | AE14: =ФР!S14 ->  | AF14: =ФР!T14 ->  | AG14: =ФР!AA14 ->  | AH14: =ФР!AB14 -> 
A15: 9 | B15: =СК!B14 -> Иванов 9 | C15: =СК!W14 -> 3.226666667 | D15: =СК!X14 ->  | E15: =ПР!M15 ->  | F15: =ПР!N15 ->  | G15: =ПР!Y15 ->  | H15: =ПР!Z15 ->  | I15: =ПР!AM15 ->  | J15: =ПР!AN15 ->  | K15: =РР!K15 ->  | L15: =РР!L15 ->  | M15: =РР!S15 ->  | N15: =РР!T15 ->  | O15: =РР!AC15 ->  | P15: =РР!AD15 ->  | Q15: =РР!AK15 ->  | R15: =РР!AL15 ->  | S15: =РР!AU15 ->  | T15: =РР!AV15 ->  | U15: =ХЭ!I16 ->  | V15: =ХЭ!J16 ->  | W15: =ХЭ!U16 ->  | X15: =ХЭ!V16 ->  | Y15: =ХЭ!AA16 ->  | Z15: =ХЭ!AB16 ->  | AA15: =ХЭ!AS16 ->  | AB15: =ХЭ!AT16 ->  | AC15: =ХЭ!BA16 ->  | AD15: =ХЭ!BB16 ->  | AE15: =ФР!S15 ->  | AF15: =ФР!T15 ->  | AG15: =ФР!AA15 ->  | AH15: =ФР!AB15 -> 
A16: 10 | B16: =СК!B15 -> Иванов 10 | C16: =СК!W15 -> 3.226666667 | D16: =СК!X15 ->  | E16: =ПР!M16 ->  | F16: =ПР!N16 ->  | G16: =ПР!Y16 ->  | H16: =ПР!Z16 ->  | I16: =ПР!AM16 ->  | J16: =ПР!AN16 ->  | K16: =РР!K16 ->  | L16: =РР!L16 ->  | M16: =РР!S16 ->  | N16: =РР!T16 ->  | O16: =РР!AC16 ->  | P16: =РР!AD16 ->  | Q16: =РР!AK16 ->  | R16: =РР!AL16 ->  | S16: =РР!AU16 ->  | T16: =РР!AV16 ->  | U16: =ХЭ!I17 ->  | V16: =ХЭ!J17 ->  | W16: =ХЭ!U17 ->  | X16: =ХЭ!V17 ->  | Y16: =ХЭ!AA17 ->  | Z16: =ХЭ!AB17 ->  | AA16: =ХЭ!AS17 ->  | AB16: =ХЭ!AT17 ->  | AC16: =ХЭ!BA17 ->  | AD16: =ХЭ!BB17 ->  | AE16: =ФР!S16 ->  | AF16: =ФР!T16 ->  | AG16: =ФР!AA16 ->  | AH16: =ФР!AB16 -> 
A17: 11 | B17: =СК!B16 -> 0 | C17: =СК!W16 ->  | D17: =СК!X16 ->  | E17: =ПР!M17 ->  | F17: =ПР!N17 ->  | G17: =ПР!Y17 ->  | H17: =ПР!Z17 ->  | I17: =ПР!AM17 ->  | J17: =ПР!AN17 ->  | K17: =РР!K17 ->  | L17: =РР!L17 ->  | M17: =РР!S17 ->  | N17: =РР!T17 ->  | O17: =РР!AC17 ->  | P17: =РР!AD17 ->  | Q17: =РР!AK17 ->  | R17: =РР!AL17 ->  | S17: =РР!AU17 ->  | T17: =РР!AV17 ->  | U17: =ХЭ!I18 ->  | V17: =ХЭ!J18 ->  | W17: =ХЭ!U18 ->  | X17: =ХЭ!V18 ->  | Y17: =ХЭ!AA18 ->  | Z17: =ХЭ!AB18 ->  | AA17: =ХЭ!AS18 ->  | AB17: =ХЭ!AT18 ->  | AC17: =ХЭ!BA18 ->  | AD17: =ХЭ!BB18 ->  | AE17: =ФР!S17 ->  | AF17: =ФР!T17 ->  | AG17: =ФР!AA17 ->  | AH17: =ФР!AB17 -> 
A18: 12 | B18: =СК!B17 -> 0 | C18: =СК!W17 ->  | D18: =СК!X17 ->  | E18: =ПР!M18 ->  | F18: =ПР!N18 ->  | G18: =ПР!Y18 ->  | H18: =ПР!Z18 ->  | I18: =ПР!AM18 ->  | J18: =ПР!AN18 ->  | K18: =РР!K18 ->  | L18: =РР!L18 ->  | M18: =РР!S18 ->  | N18: =РР!T18 ->  | O18: =РР!AC18 ->  | P18: =РР!AD18 ->  | Q18: =РР!AK18 ->  | R18: =РР!AL18 ->  | S18: =РР!AU18 ->  | T18: =РР!AV18 ->  | U18: =ХЭ!I19 ->  | V18: =ХЭ!J19 ->  | W18: =ХЭ!U19 ->  | X18: =ХЭ!V19 ->  | Y18: =ХЭ!AA19 ->  | Z18: =ХЭ!AB19 ->  | AA18: =ХЭ!AS19 ->  | AB18: =ХЭ!AT19 ->  | AC18: =ХЭ!BA19 ->  | AD18: =ХЭ!BB19 ->  | AE18: =ФР!S18 ->  | AF18: =ФР!T18 ->  | AG18: =ФР!AA18 ->  | AH18: =ФР!AB18 -> 
A19: 13 | B19: =СК!B18 -> 0 | C19: =СК!W18 ->  | D19: =СК!X18 ->  | E19: =ПР!M19 ->  | F19: =ПР!N19 ->  | G19: =ПР!Y19 ->  | H19: =ПР!Z19 ->  | I19: =ПР!AM19 ->  | J19: =ПР!AN19 ->  | K19: =РР!K19 ->  | L19: =РР!L19 ->  | M19: =РР!S19 ->  | N19: =РР!T19 ->  | O19: =РР!AC19 ->  | P19: =РР!AD19 ->  | Q19: =РР!AK19 ->  | R19: =РР!AL19 ->  | S19: =РР!AU19 ->  | T19: =РР!AV19 ->  | U19: =ХЭ!I20 ->  | V19: =ХЭ!J20 ->  | W19: =ХЭ!U20 ->  | X19: =ХЭ!V20 ->  | Y19: =ХЭ!AA20 ->  | Z19: =ХЭ!AB20 ->  | AA19: =ХЭ!AS20 ->  | AB19: =ХЭ!AT20 ->  | AC19: =ХЭ!BA20 ->  | AD19: =ХЭ!BB20 ->  | AE19: =ФР!S19 ->  | AF19: =ФР!T19 ->  | AG19: =ФР!AA19 ->  | AH19: =ФР!AB19 -> 
A20: 14 | B20: =СК!B19 -> 0 | C20: =СК!W19 ->  | D20: =СК!X19 ->  | E20: =ПР!M20 ->  | F20: =ПР!N20 ->  | G20: =ПР!Y20 ->  | H20: =ПР!Z20 ->  | I20: =ПР!AM20 ->  | J20: =ПР!AN20 ->  | K20: =РР!K20 ->  | L20: =РР!L20 ->  | M20: =РР!S20 ->  | N20: =РР!T20 ->  | O20: =РР!AC20 ->  | P20: =РР!AD20 ->  | Q20: =РР!AK20 ->  | R20: =РР!AL20 ->  | S20: =РР!AU20 ->  | T20: =РР!AV20 ->  | U20: =ХЭ!I21 ->  | V20: =ХЭ!J21 ->  | W20: =ХЭ!U21 ->  | X20: =ХЭ!V21 ->  | Y20: =ХЭ!AA21 ->  | Z20: =ХЭ!AB21 ->  | AA20: =ХЭ!AS21 ->  | AB20: =ХЭ!AT21 ->  | AC20: =ХЭ!BA21 ->  | AD20: =ХЭ!BB21 ->  | AE20: =ФР!S20 ->  | AF20: =ФР!T20 ->  | AG20: =ФР!AA20 ->  | AH20: =ФР!AB20 -> 
A21: 15 | B21: =СК!B20 -> 0 | C21: =СК!W20 ->  | D21: =СК!X20 ->  | E21: =ПР!M21 ->  | F21: =ПР!N21 ->  | G21: =ПР!Y21 ->  | H21: =ПР!Z21 ->  | I21: =ПР!AM21 ->  | J21: =ПР!AN21 ->  | K21: =РР!K21 ->  | L21: =РР!L21 ->  | M21: =РР!S21 ->  | N21: =РР!T21 ->  | O21: =РР!AC21 ->  | P21: =РР!AD21 ->  | Q21: =РР!AK21 ->  | R21: =РР!AL21 ->  | S21: =РР!AU21 ->  | T21: =РР!AV21 ->  | U21: =ХЭ!I22 ->  | V21: =ХЭ!J22 ->  | W21: =ХЭ!U22 ->  | X21: =ХЭ!V22 ->  | Y21: =ХЭ!AA22 ->  | Z21: =ХЭ!AB22 ->  | AA21: =ХЭ!AS22 ->  | AB21: =ХЭ!AT22 ->  | AC21: =ХЭ!BA22 ->  | AD21: =ХЭ!BB22 ->  | AE21: =ФР!S21 ->  | AF21: =ФР!T21 ->  | AG21: =ФР!AA21 ->  | AH21: =ФР!AB21 -> 
A22: 16 | B22: =СК!B21 -> 0 | C22: =СК!W21 ->  | D22: =СК!X21 ->  | E22: =ПР!M22 ->  | F22: =ПР!N22 ->  | G22: =ПР!Y22 ->  | H22: =ПР!Z22 ->  | I22: =ПР!AM22 ->  | J22: =ПР!AN22 ->  | K22: =РР!K22 ->  | L22: =РР!L22 ->  | M22: =РР!S22 ->  | N22: =РР!T22 ->  | O22: =РР!AC22 ->  | P22: =РР!AD22 ->  | Q22: =РР!AK22 ->  | R22: =РР!AL22 ->  | S22: =РР!AU22 ->  | T22: =РР!AV22 ->  | U22: =ХЭ!I23 ->  | V22: =ХЭ!J23 ->  | W22: =ХЭ!U23 ->  | X22: =ХЭ!V23 ->  | Y22: =ХЭ!AA23 ->  | Z22: =ХЭ!AB23 ->  | AA22: =ХЭ!AS23 ->  | AB22: =ХЭ!AT23 ->  | AC22: =ХЭ!BA23 ->  | AD22: =ХЭ!BB23 ->  | AE22: =ФР!S22 ->  | AF22: =ФР!T22 ->  | AG22: =ФР!AA22 ->  | AH22: =ФР!AB22 -> 
A23: 17 | B23: =СК!B22 -> 0 | C23: =СК!W22 ->  | D23: =СК!X22 ->  | E23: =ПР!M23 ->  | F23: =ПР!N23 ->  | G23: =ПР!Y23 ->  | H23: =ПР!Z23 ->  | I23: =ПР!AM23 ->  | J23: =ПР!AN23 ->  | K23: =РР!K23 ->  | L23: =РР!L23 ->  | M23: =РР!S23 ->  | N23: =РР!T23 ->  | O23: =РР!AC23 ->  | P23: =РР!AD23 ->  | Q23: =РР!AK23 ->  | R23: =РР!AL23 ->  | S23: =РР!AU23 ->  | T23: =РР!AV23 ->  | U23: =ХЭ!I24 ->  | V23: =ХЭ!J24 ->  | W23: =ХЭ!U24 ->  | X23: =ХЭ!V24 ->  | Y23: =ХЭ!AA24 ->  | Z23: =ХЭ!AB24 ->  | AA23: =ХЭ!AS24 ->  | AB23: =ХЭ!AT24 ->  | AC23: =ХЭ!BA24 ->  | AD23: =ХЭ!BB24 ->  | AE23: =ФР!S23 ->  | AF23: =ФР!T23 ->  | AG23: =ФР!AA23 ->  | AH23: =ФР!AB23 -> 
A24: 18 | B24: =СК!B23 -> 0 | C24: =СК!W23 ->  | D24: =СК!X23 ->  | E24: =ПР!M24 ->  | F24: =ПР!N24 ->  | G24: =ПР!Y24 ->  | H24: =ПР!Z24 ->  | I24: =ПР!AM24 ->  | J24: =ПР!AN24 ->  | K24: =РР!K24 ->  | L24: =РР!L24 ->  | M24: =РР!S24 ->  | N24: =РР!T24 ->  | O24: =РР!AC24 ->  | P24: =РР!AD24 ->  | Q24: =РР!AK24 ->  | R24: =РР!AL24 ->  | S24: =РР!AU24 ->  | T24: =РР!AV24 ->  | U24: =ХЭ!I25 ->  | V24: =ХЭ!J25 ->  | W24: =ХЭ!U25 ->  | X24: =ХЭ!V25 ->  | Y24: =ХЭ!AA25 ->  | Z24: =ХЭ!AB25 ->  | AA24: =ХЭ!AS25 ->  | AB24: =ХЭ!AT25 ->  | AC24: =ХЭ!BA25 ->  | AD24: =ХЭ!BB25 ->  | AE24: =ФР!S24 ->  | AF24: =ФР!T24 ->  | AG24: =ФР!AA24 ->  | AH24: =ФР!AB24 -> 
A25: 19 | B25: =СК!B24 -> 0 | C25: =СК!W24 ->  | D25: =СК!X24 ->  | E25: =ПР!M25 ->  | F25: =ПР!N25 ->  | G25: =ПР!Y25 ->  | H25: =ПР!Z25 ->  | I25: =ПР!AM25 ->  | J25: =ПР!AN25 ->  | K25: =РР!K25 ->  | L25: =РР!L25 ->  | M25: =РР!S25 ->  | N25: =РР!T25 ->  | O25: =РР!AC25 ->  | P25: =РР!AD25 ->  | Q25: =РР!AK25 ->  | R25: =РР!AL25 ->  | S25: =РР!AU25 ->  | T25: =РР!AV25 ->  | U25: =ХЭ!I26 ->  | V25: =ХЭ!J26 ->  | W25: =ХЭ!U26 ->  | X25: =ХЭ!V26 ->  | Y25: =ХЭ!AA26 ->  | Z25: =ХЭ!AB26 ->  | AA25: =ХЭ!AS26 ->  | AB25: =ХЭ!AT26 ->  | AC25: =ХЭ!BA26 ->  | AD25: =ХЭ!BB26 ->  | AE25: =ФР!S25 ->  | AF25: =ФР!T25 ->  | AG25: =ФР!AA25 ->  | AH25: =ФР!AB25 -> 
A26: 20 | B26: =СК!B25 -> 0 | C26: =СК!W25 ->  | D26: =СК!X25 ->  | E26: =ПР!M26 ->  | F26: =ПР!N26 ->  | G26: =ПР!Y26 ->  | H26: =ПР!Z26 ->  | I26: =ПР!AM26 ->  | J26: =ПР!AN26 ->  | K26: =РР!K26 ->  | L26: =РР!L26 ->  | M26: =РР!S26 ->  | N26: =РР!T26 ->  | O26: =РР!AC26 ->  | P26: =РР!AD26 ->  | Q26: =РР!AK26 ->  | R26: =РР!AL26 ->  | S26: =РР!AU26 ->  | T26: =РР!AV26 ->  | U26: =ХЭ!I27 ->  | V26: =ХЭ!J27 ->  | W26: =ХЭ!U27 ->  | X26: =ХЭ!V27 ->  | Y26: =ХЭ!AA27 ->  | Z26: =ХЭ!AB27 ->  | AA26: =ХЭ!AS27 ->  | AB26: =ХЭ!AT27 ->  | AC26: =ХЭ!BA27 ->  | AD26: =ХЭ!BB27 ->  | AE26: =ФР!S26 ->  | AF26: =ФР!T26 ->  | AG26: =ФР!AA26 ->  | AH26: =ФР!AB26 -> 
A27: 21 | B27: =СК!B26 -> 0 | C27: =СК!W26 ->  | D27: =СК!X26 ->  | E27: =ПР!M27 ->  | F27: =ПР!N27 ->  | G27: =ПР!Y27 ->  | H27: =ПР!Z27 ->  | I27: =ПР!AM27 ->  | J27: =ПР!AN27 ->  | K27: =РР!K27 ->  | L27: =РР!L27 ->  | M27: =РР!S27 ->  | N27: =РР!T27 ->  | O27: =РР!AC27 ->  | P27: =РР!AD27 ->  | Q27: =РР!AK27 ->  | R27: =РР!AL27 ->  | S27: =РР!AU27 ->  | T27: =РР!AV27 ->  | U27: =ХЭ!I28 ->  | V27: =ХЭ!J28 ->  | W27: =ХЭ!U28 ->  | X27: =ХЭ!V28 ->  | Y27: =ХЭ!AA28 ->  | Z27: =ХЭ!AB28 ->  | AA27: =ХЭ!AS28 ->  | AB27: =ХЭ!AT28 ->  | AC27: =ХЭ!BA28 ->  | AD27: =ХЭ!BB28 ->  | AE27: =ФР!S27 ->  | AF27: =ФР!T27 ->  | AG27: =ФР!AA27 ->  | AH27: =ФР!AB27 -> 
A28: 22 | B28: =СК!B27 -> 0 | C28: =СК!W27 ->  | D28: =СК!X27 ->  | E28: =ПР!M28 ->  | F28: =ПР!N28 ->  | G28: =ПР!Y28 ->  | H28: =ПР!Z28 ->  | I28: =ПР!AM28 ->  | J28: =ПР!AN28 ->  | K28: =РР!K28 ->  | L28: =РР!L28 ->  | M28: =РР!S28 ->  | N28: =РР!T28 ->  | O28: =РР!AC28 ->  | P28: =РР!AD28 ->  | Q28: =РР!AK28 ->  | R28: =РР!AL28 ->  | S28: =РР!AU28 ->  | T28: =РР!AV28 ->  | U28: =ХЭ!I29 ->  | V28: =ХЭ!J29 ->  | W28: =ХЭ!U29 ->  | X28: =ХЭ!V29 ->  | Y28: =ХЭ!AA29 ->  | Z28: =ХЭ!AB29 ->  | AA28: =ХЭ!AS29 ->  | AB28: =ХЭ!AT29 ->  | AC28: =ХЭ!BA29 ->  | AD28: =ХЭ!BB29 ->  | AE28: =ФР!S28 ->  | AF28: =ФР!T28 ->  | AG28: =ФР!AA28 ->  | AH28: =ФР!AB28 -> 
A29: 23 | B29: =СК!B28 -> 0 | C29: =СК!W28 ->  | D29: =СК!X28 ->  | E29: =ПР!M29 ->  | F29: =ПР!N29 ->  | G29: =ПР!Y29 ->  | H29: =ПР!Z29 ->  | I29: =ПР!AM29 ->  | J29: =ПР!AN29 ->  | K29: =РР!K29 ->  | L29: =РР!L29 ->  | M29: =РР!S29 ->  | N29: =РР!T29 ->  | O29: =РР!AC29 ->  | P29: =РР!AD29 ->  | Q29: =РР!AK29 ->  | R29: =РР!AL29 ->  | S29: =РР!AU29 ->  | T29: =РР!AV29 ->  | U29: =ХЭ!I30 ->  | V29: =ХЭ!J30 ->  | W29: =ХЭ!U30 ->  | X29: =ХЭ!V30 ->  | Y29: =ХЭ!AA30 ->  | Z29: =ХЭ!AB30 ->  | AA29: =ХЭ!AS30 ->  | AB29: =ХЭ!AT30 ->  | AC29: =ХЭ!BA30 ->  | AD29: =ХЭ!BB30 ->  | AE29: =ФР!S29 ->  | AF29: =ФР!T29 ->  | AG29: =ФР!AA29 ->  | AH29: =ФР!AB29 -> 
A30: 24 | B30: =СК!B29 -> 0 | C30: =СК!W29 ->  | D30: =СК!X29 ->  | E30: =ПР!M30 ->  | F30: =ПР!N30 ->  | G30: =ПР!Y30 ->  | H30: =ПР!Z30 ->  | I30: =ПР!AM30 ->  | J30: =ПР!AN30 ->  | K30: =РР!K30 ->  | L30: =РР!L30 ->  | M30: =РР!S30 ->  | N30: =РР!T30 ->  | O30: =РР!AC30 ->  | P30: =РР!AD30 ->  | Q30: =РР!AK30 ->  | R30: =РР!AL30 ->  | S30: =РР!AU30 ->  | T30: =РР!AV30 ->  | U30: =ХЭ!I31 ->  | V30: =ХЭ!J31 ->  | W30: =ХЭ!U31 ->  | X30: =ХЭ!V31 ->  | Y30: =ХЭ!AA31 ->  | Z30: =ХЭ!AB31 ->  | AA30: =ХЭ!AS31 ->  | AB30: =ХЭ!AT31 ->  | AC30: =ХЭ!BA31 ->  | AD30: =ХЭ!BB31 ->  | AE30: =ФР!S30 ->  | AF30: =ФР!T30 ->  | AG30: =ФР!AA30 ->  | AH30: =ФР!AB30 -> 
A31: 25 | B31: =СК!B30 -> 0 | C31: =СК!W30 ->  | D31: =СК!X30 ->  | E31: =ПР!M31 ->  | F31: =ПР!N31 ->  | G31: =ПР!Y31 ->  | H31: =ПР!Z31 ->  | I31: =ПР!AM31 ->  | J31: =ПР!AN31 ->  | K31: =РР!K31 ->  | L31: =РР!L31 ->  | M31: =РР!S31 ->  | N31: =РР!T31 ->  | O31: =РР!AC31 ->  | P31: =РР!AD31 ->  | Q31: =РР!AK31 ->  | R31: =РР!AL31 ->  | S31: =РР!AU31 ->  | T31: =РР!AV31 ->  | U31: =ХЭ!I32 ->  | V31: =ХЭ!J32 ->  | W31: =ХЭ!U32 ->  | X31: =ХЭ!V32 ->  | Y31: =ХЭ!AA32 ->  | Z31: =ХЭ!AB32 ->  | AA31: =ХЭ!AS32 ->  | AB31: =ХЭ!AT32 ->  | AC31: =ХЭ!BA32 ->  | AD31: =ХЭ!BB32 ->  | AE31: =ФР!S31 ->  | AF31: =ФР!T31 ->  | AG31: =ФР!AA31 ->  | AH31: =ФР!AB31 -> 
A32: 26 | B32: =СК!B31 -> 0 | C32: =СК!W31 ->  | D32: =СК!X31 ->  | E32: =ПР!M32 ->  | F32: =ПР!N32 ->  | G32: =ПР!Y32 ->  | H32: =ПР!Z32 ->  | I32: =ПР!AM32 ->  | J32: =ПР!AN32 ->  | K32: =РР!K32 ->  | L32: =РР!L32 ->  | M32: =РР!S32 ->  | N32: =РР!T32 ->  | O32: =РР!AC32 ->  | P32: =РР!AD32 ->  | Q32: =РР!AK32 ->  | R32: =РР!AL32 ->  | S32: =РР!AU32 ->  | T32: =РР!AV32 ->  | U32: =ХЭ!I33 ->  | V32: =ХЭ!J33 ->  | W32: =ХЭ!U33 ->  | X32: =ХЭ!V33 ->  | Y32: =ХЭ!AA33 ->  | Z32: =ХЭ!AB33 ->  | AA32: =ХЭ!AS33 ->  | AB32: =ХЭ!AT33 ->  | AC32: =ХЭ!BA33 ->  | AD32: =ХЭ!BB33 ->  | AE32: =ФР!S32 ->  | AF32: =ФР!T32 ->  | AG32: =ФР!AA32 ->  | AH32: =ФР!AB32 -> 
A33: 27 | B33: =СК!B32 -> 0 | C33: =СК!W32 ->  | D33: =СК!X32 ->  | E33: =ПР!M33 ->  | F33: =ПР!N33 ->  | G33: =ПР!Y33 ->  | H33: =ПР!Z33 ->  | I33: =ПР!AM33 ->  | J33: =ПР!AN33 ->  | K33: =РР!K33 ->  | L33: =РР!L33 ->  | M33: =РР!S33 ->  | N33: =РР!T33 ->  | O33: =РР!AC33 ->  | P33: =РР!AD33 ->  | Q33: =РР!AK33 ->  | R33: =РР!AL33 ->  | S33: =РР!AU33 ->  | T33: =РР!AV33 ->  | U33: =ХЭ!I34 ->  | V33: =ХЭ!J34 ->  | W33: =ХЭ!U34 ->  | X33: =ХЭ!V34 ->  | Y33: =ХЭ!AA34 ->  | Z33: =ХЭ!AB34 ->  | AA33: =ХЭ!AS34 ->  | AB33: =ХЭ!AT34 ->  | AC33: =ХЭ!BA34 ->  | AD33: =ХЭ!BB34 ->  | AE33: =ФР!S33 ->  | AF33: =ФР!T33 ->  | AG33: =ФР!AA33 ->  | AH33: =ФР!AB33 -> 
A34: 28 | B34: =СК!B33 -> 0 | C34: =СК!W33 ->  | D34: =СК!X33 ->  | E34: =ПР!M34 ->  | F34: =ПР!N34 ->  | G34: =ПР!Y34 ->  | H34: =ПР!Z34 ->  | I34: =ПР!AM34 ->  | J34: =ПР!AN34 ->  | K34: =РР!K34 ->  | L34: =РР!L34 ->  | M34: =РР!S34 ->  | N34: =РР!T34 ->  | O34: =РР!AC34 ->  | P34: =РР!AD34 ->  | Q34: =РР!AK34 ->  | R34: =РР!AL34 ->  | S34: =РР!AU34 ->  | T34: =РР!AV34 ->  | U34: =ХЭ!I35 ->  | V34: =ХЭ!J35 ->  | W34: =ХЭ!U35 ->  | X34: =ХЭ!V35 ->  | Y34: =ХЭ!AA35 ->  | Z34: =ХЭ!AB35 ->  | AA34: =ХЭ!AS35 ->  | AB34: =ХЭ!AT35 ->  | AC34: =ХЭ!BA35 ->  | AD34: =ХЭ!BB35 ->  | AE34: =ФР!S34 ->  | AF34: =ФР!T34 ->  | AG34: =ФР!AA34 ->  | AH34: =ФР!AB34 -> 
A35: 29 | B35: =СК!B34 -> 0 | C35: =СК!W34 ->  | D35: =СК!X34 ->  | E35: =ПР!M35 ->  | F35: =ПР!N35 ->  | G35: =ПР!Y35 ->  | H35: =ПР!Z35 ->  | I35: =ПР!AM35 ->  | J35: =ПР!AN35 ->  | K35: =РР!K35 ->  | L35: =РР!L35 ->  | M35: =РР!S35 ->  | N35: =РР!T35 ->  | O35: =РР!AC35 ->  | P35: =РР!AD35 ->  | Q35: =РР!AK35 ->  | R35: =РР!AL35 ->  | S35: =РР!AU35 ->  | T35: =РР!AV35 ->  | U35: =ХЭ!I36 ->  | V35: =ХЭ!J36 ->  | W35: =ХЭ!U36 ->  | X35: =ХЭ!V36 ->  | Y35: =ХЭ!AA36 ->  | Z35: =ХЭ!AB36 ->  | AA35: =ХЭ!AS36 ->  | AB35: =ХЭ!AT36 ->  | AC35: =ХЭ!BA36 ->  | AD35: =ХЭ!BB36 ->  | AE35: =ФР!S35 ->  | AF35: =ФР!T35 ->  | AG35: =ФР!AA35 ->  | AH35: =ФР!AB35 -> 
A36: 30 | B36: =СК!B35 -> 0 | C36: =СК!W35 ->  | D36: =СК!X35 ->  | E36: =ПР!M36 ->  | F36: =ПР!N36 ->  | G36: =ПР!Y36 ->  | H36: =ПР!Z36 ->  | I36: =ПР!AM36 ->  | J36: =ПР!AN36 ->  | K36: =РР!K36 ->  | L36: =РР!L36 ->  | M36: =РР!S36 ->  | N36: =РР!T36 ->  | O36: =РР!AC36 ->  | P36: =РР!AD36 ->  | Q36: =РР!AK36 ->  | R36: =РР!AL36 ->  | S36: =РР!AU36 ->  | T36: =РР!AV36 ->  | U36: =ХЭ!I37 ->  | V36: =ХЭ!J37 ->  | W36: =ХЭ!U37 ->  | X36: =ХЭ!V37 ->  | Y36: =ХЭ!AA37 ->  | Z36: =ХЭ!AB37 ->  | AA36: =ХЭ!AS37 ->  | AB36: =ХЭ!AT37 ->  | AC36: =ХЭ!BA37 ->  | AD36: =ХЭ!BB37 ->  | AE36: =ФР!S36 ->  | AF36: =ФР!T36 ->  | AG36: =ФР!AA36 ->  | AH36: =ФР!AB36 -> 
B37: =СК!B36 -> среднее значение: | C37: =СК!W36 ->  | D37: =СК!X36 ->  | E37: =ПР!M37 ->  | F37: =ПР!N37 ->  | G37: =ПР!Y37 ->  | H37: =ПР!Z37 ->  | I37: =ПР!AM37 ->  | J37: =ПР!AN37 ->  | K37: =РР!K37 ->  | L37: =РР!L37 ->  | M37: =РР!S37 ->  | N37: =РР!T37 ->  | O37: =РР!AC37 ->  | P37: =РР!AD37 ->  | Q37: =РР!AK37 ->  | R37: =РР!AL37 ->  | S37: =РР!AU37 ->  | T37: =РР!AV37 ->  | U37: =ХЭ!I38 -> 3.333333333 | V37: =ХЭ!J38 -> 4.333333333 | W37: =ХЭ!U38 -> 2.6 | X37: =ХЭ!V38 -> 3.6 | Y37: =ХЭ!AA38 -> 4 | Z37: =ХЭ!AB38 -> 5 | AA37: =ХЭ!AS38 -> 2.375 | AB37: =ХЭ!AT38 -> 3.375 | AC37: =ХЭ!BA38 -> 3.222222222 | AD37: =ХЭ!BB38 -> 4.111111111 | AE37: =ФР!S37 -> 2.25 | AF37: =ФР!T37 -> 3.375 | AG37: =ФР!AA37 -> 2.5 | AH37: =ФР!AB37 -> 3.5 | AI37: =AVERAGE(C37,E37,G37,I37,K37,M37,O37,Q37,S37,U37,W37,Y37,AA37,AC37,AE37,AG37) -> 
